{"text_format":"1","workbook":"xlsx","n_sheets":28,"sheets":["Start","Ant1","Ant2","Ant3","KUP","Ant4","Ant5","Ant6","Hilfe","Anh1","Anh2","Anh3","AusgOrgaBerat","AusgOrgaKonzep","AusgOrgaGeschäft","AusgStartbeih","AusgStratEuA","AusgStratSach","AusgGAKImmo","AusgGAKMasch","AusgGAKallg.Auf","AusgQuali","Betriebsspiegel","Uebertragung","Liste1","Kulisse","Betreuer","KreisGemeindeListe"],"not_rendered":{"charts":0,"images":80,"macros":1,"external_links":3,"defined_names":93,"comments":7,"pivot_tables":0},"unopened":[],"bounds":{"document_bytes":16777216,"sheet_cells":100000,"rows_first":2000,"rows_last":500,"rows_between":2000,"halvings":0,"cell_chars":16384,"cell_head_chars":4096},"cells_cut":0,"cells_raw":0,"read":"whole","date_system":"1900"}

{"sheet":"Start","index":0,"n_rows":24,"n_cols":2,"rows_kept":24,"cut":false,"hidden":false,"merged":[[0,0,0,5],[2,1,2,6],[1,1,1,6],[3,1,3,6],[25,1,25,6],[20,1,20,6],[23,1,23,6],[4,1,4,6],[19,1,19,6],[8,1,8,6],[9,1,10,6],[11,1,11,6],[12,1,12,6],[5,1,5,6],[7,1,7,6]]}
["Der Direktor der \nLandwirtschaftskammer Nordrhein-Westfalen \nals Landesbeauftragter"]
[]
[null,"ANTRAG"]
[null,"auf Gewährung von Zuwendungen zur Förderung der"]
[null," Diversifizierung "]
[null,"der Tätigkeiten im landwirtschaftlichen und landwirtschaftsnahen Bereich"]
[]
[null,"gemäß den Landesrichtlinien \ndes MKULNV - II-B 2 - 2570.01 in der Fassung vom 21.10.2015"]
[null,"für Nordrhein-Westfalen"]
[null,"an den "]
[]
[null,"Direktor der Landwirtschaftskammer NRW"]
[null," als Landesbeauftragten"]
[]
[]
[]
[]
[]
[]
[]
[]
[]
[]
[null,"gültig ab 20. November 2015"]

{"sheet":"Ant1","index":1,"n_rows":29,"n_cols":13,"rows_kept":29,"cut":false,"hidden":false,"merged":[[22,3,22,4],[22,5,22,7],[17,1,17,2],[18,3,18,4],[17,3,17,5],[18,5,18,7],[19,1,19,2],[19,3,19,4],[27,1,27,4],[23,1,23,2],[1,1,1,4],[12,5,12,7],[12,3,12,4],[6,1,6,5],[7,6,9,7],[15,1,15,4],[15,5,15,7],[13,5,13,7],[13,1,13,2],[13,3,13,4],[14,1,14,4],[14,5,14,7],[26,1,26,2],[19,5,19,7],[38,1,38,7],[28,5,28,6],[2,6,2,7],[16,3,16,4],[29,1,29,4],[29,5,29,7],[27,5,27,7],[10,6,10,7],[11,6,11,7],[6,6,6,7],[35,2,35,7],[36,2,36,7],[37,2,37,7],[26,3,26,4],[23,5,23,7],[23,3,23,4]]}
[]
[null,"Der Direktor der \nLandwirtschaftskammer Nordrhein-Westfalen \nals Landesbeauftragter"]
[null,null,null,null,null,null,"Eingangsstempel"]
[null,"Antrag auf Gewährung einer Zuwendung"]
[null,"zur Förderung der Diversifizierung der Tätigkeiten"]
[null,"im landwirtschaftlichen und landwirtschaftsnahen Bereich"]
[null,"nach den Richtlinien des MKULNV (II-B 2-2570.01) in der Fassung vom 15.9.2014",null,null,null,null,"Hinweis:"]
[null,"An den Direktor der Landwirtschaftskammer NRW als",null,null,null,null,"Der Antrag kann nur bearbeitet werden, wenn die Angaben vollständig sind. Die Bearbeitung des Antrages erfolgt mit Hilfe der EDV."]
[null,"Landesbeauftragter über die Verwaltungseinheit"]
[null,"Kreisstellen Rhein-Erft-Kreis, Rhein-Kreis Neuss, Rhein-Sieg-Kreis"]
[null,"in",{"$f":"VLOOKUP(B10,Liste1!B10:C40,2,0)","v":"50765 Köln-Auweiler, Gartenstraße 11"},null,null,null,"Unternehmer-Nr. (LWK)"]
[null,"1.1 Antragstellerin / Antragsteller",null,null,null,null,null,null,null,null,null,null,true]
[null,"Name/Unternehmensbezeichnung",null,"Vorname",null,"Bevollmächtigter (Anrede, Vorname, Name)"]
[null,"",null,"",null,""]
[null,"Straße, Hausnummer"]
[]
[null,"PLZ",null,"Wohnort",null,null,"Rechtsform"]
[null,null,null,"",null,null,"Einzelunternehmen",null,false]
[null,"Telefon",null,"Telefax",null,"e-Mail-Adresse",null,null,true]
[null,"",null,"",null,null,null,null,true]
[null,"mein Unternehmen ist ein einzige Unternehmen im Sinne der Verordnung (EU) Nr. 1407/2013",null,null,null,null,null,null,true]
[null,null,"ja","nein",null,null,null,null,false]
[null,"Alter",null,"Geschlecht",null,"Status Antragsteller/in",null,null,false]
[null,null,null,null,null,null,null,null,false]
[null,null,null,null,null,null,null,null,false]
[null,"Mithilfe/Beratung im Antragsverfahren durch:",null,null,null,null,null,null,false]
[null,"Organisation, Name",null,null,null,"Tel.-Nr.",null,null,false]
[]
[null,"Betreuer/in",null,null,null,"e-mail-Adresse"]

{"sheet":"Ant2","index":2,"n_rows":30,"n_cols":13,"rows_kept":30,"cut":false,"hidden":false,"merged":[[23,2,23,3],[11,2,11,9],[12,2,12,9],[13,2,13,9],[29,2,29,9],[27,2,27,3],[28,2,28,3],[14,2,14,9],[26,2,26,3],[24,2,24,3],[25,2,25,3],[3,2,3,9],[4,2,4,9],[8,2,8,9],[10,2,10,9],[6,2,6,5],[6,6,6,7],[5,2,5,5],[5,6,5,9],[7,2,7,9]]}
[null,false,false,false,true,false,false,false,false,false,true]
[null,null,null,null,null,null,null,"Unternehmer-Nr.",null,{"$f":"'Ant1'!G12","v":0}]
[null,"Bei dem Antragsteller oder den Antragstellern handelt es sich um "]
[null,"1.2.1","Inhaber eines landwirtschaftlichen Einzelunternehmens im Sinne des Gesetzes über die Alterssicherung der Landwirte (ALG) und ggf. dessen Ehegatten gemäß Ziffer 3.1.1 oder 3.2.3 der Landesrichtlinien. "]
[null,"1.2.2","mitarbeitende Familienangehörige gemäß § 1 Absatz 8 ALG, die in räumlicher Nähe und in einem unmittelbaren organisatorischen und wirtschaftlichen Zusammenhang mit dem unten angegebenen landwirtschaftlichen Betrieb erstmalig eine selbständige Existenz gründen oder entwickeln gemäß Ziffer 3.1.2 oder 3.2.3 der Landesrichtlinien."]
[null,null,"Bezeichnung des Betriebes/Unternehmens",null,null,null,"Unternehmer-Nr. des Betriebes"]
[null,null,null,null,null,null,null,null,null,null,{"$f":"C7<>\"\"","v":false},null,{"$f":"K7=D1","v":true}]
[true,"1.2.3","eine Mitarbeiterin oder einen Mitarbeiter in oben angegebenen Unternehmen gemäß den Ziffern 3.1.1 oder 3.1.2, soweit sie mit der Maßnahme befasst sind, gemäß Ziffer 3.3 der Landesrichtlinien."]
[null,"1.2.4","eine Kooperation \n\n- von Landwirten gemäß Ziffer 3.1.1 oder Unternehmen gemäß Ziffer 3.2.1 (Berechnung der Umsatzerlöse aus bodengebundener Produktion erforderlich) mit Gewerbebetrieben, die in einem unmittelbaren organisatorischen und wirtschaftlichen Zusammenhang (Mitglied des Haushalts des landwirtschaftlichen Betriebes) mit einem landwirtschaftlichen Unternehmen eines Beteiligten geführt werden."]
[]
[null,null,"- von mindestens drei Beteiligten, davon 50 % Landwirte nach Nr. 1.2.1 oder Unternehmen gemäß Nr. 1.2.6 oder 1.2.7. Teilnehmer von Kooperationen können auch Unternehmen des Handwerks oder Gewerbes sowie Einzelpersonen oder Unternehmen sein, die einen landwirtschaftlichen Betrieb bewirtschaften und unmittelbar kirchliche, gemeinnützige oder mildtätige Zwecke verfolgen."]
[null,"1.2.5","einen Landwirt gemäß Ziffer 3.1.5 der Landesrichtlinien, der einen gewerblichen Nebenbetrieb führt, dessen Geschäftstätigkeit zu wesentlichen Teilen (mehr als 25 % der Umsatzerlöse) in landwirtschaftlicher Erzeugung besteht. (Berechnung der Umsatzerlöse aus bodengebundener Produktion erforderlich)"]
[null,"1.2.6","ein Unternehmen gemäß Ziffer 3.2.1 der Landesrichtlinien, dessen Geschäftstätigkeit zu wesentlichen Teilen (mehr als 25 % der Umsatzerlöse) in landwirtschaftlicher Erzeugung besteht und das die in § 1 Absatz 2 des Gesetzes über die Alterssicherung der Landwirte (ALG) genannte Mindestgröße erreicht oder überschreitet. (Berechnung der Umsatzerlöse aus bodengebundener Produktion erforderlich)"]
[true,"1.2.7","ein Unternehmen gemäß Ziffer 3.2.2  der Landesrichtlinien, das einen landwirtschaftlichen Betrieb bewirtschaftet und unmittelbar kirchliche, gemeinnützige oder mildtätige Zwecke verfolgt."]
[false,"1.3","die Kapitalbeteiligung der öffentlichen Hand am Eigenkapital des Unternehmens beträgt:"]
[null,"1.4  Erklärung zu den Einkünften der Antragstellerin / des Antragstellers"]
[false,null,"1. Ich werde / Wir werden zur Einkommenssteuer veranlagt (Wenn nein weiter mit 2. Maßnahme)"]
[]
[null,null,"2. Die Einkünfte aus Land- und Forstwirtschaft betragen aufgrund des letzten Einkommenssteuerbescheides"]
[null,null,null,"Jahr","in Euro",null,null,"(nur wenn keine GAK-Maßnahme)"]
[null,null,null,0,0]
[null,null,"3. Die positiven Einkünfte der am antragstellenden Unternehmen beteiligten Personen und deren Ehegatten"]
[null,null,"betragen laut Einkommenssteuerbescheiden der letzten 3 Jahre (nur bei GAK-Maßnahmen):"]
[null,null,"Jahr /Name (1-4)"]
[]
[null,null,{"$f":"IF(C25>0,C25+1,\"\")","v":""}]
[null,null,{"$f":"IF(C25>0,C25+2,\"\")","v":""}]
[null,null,"Durchschnittlich",null,{"$f":"IF(E25>0,AVERAGE(E25:E27),\"\")","v":""},{"$f":"IF(F25>0,AVERAGE(F25:F27),\"\")","v":""},{"$f":"IF(G25>0,AVERAGE(G25:G27),\"\")","v":""},{"$f":"IF(H25>0,AVERAGE(H25:H27),\"\")","v":""}]
[null,null,"Kapitalanteil"]
[null,null,"Ich versichere hiermit, dass die aktuellsten mir vorliegenden Einkommensteuerbescheide beigefügt sind."]

{"sheet":"Ant3","index":3,"n_rows":43,"n_cols":10,"rows_kept":43,"cut":false,"hidden":false,"merged":[[5,1,5,8],[16,1,16,4],[11,4,11,5],[17,1,17,4],[11,6,11,8],[6,1,6,6],[7,2,7,3],[8,2,8,3],[9,2,9,3],[11,2,11,3],[10,6,10,7],[23,1,23,4],[22,1,22,4],[20,1,20,4],[10,1,10,3],[21,1,21,4],[12,1,12,4],[19,1,19,4],[10,4,10,5],[18,1,18,4],[32,4,32,7],[34,1,34,4],[27,4,27,6],[29,4,29,7],[30,4,30,6],[28,4,28,8],[42,1,42,8],[41,1,41,4],[35,1,35,4],[36,1,36,4],[37,1,37,4],[38,1,38,4],[39,1,39,4],[40,1,40,4]]}
[null,null,null,null,null,null,null,"Unternehmer-Nr.",{"$f":"'Ant1'!G12","v":0}]
[null,"2. Maßnahme",null,null,null,null,null,null,null,true]
[null,"Ich beantrage die Gewährung einer Zuwendung nach der Ziffer 2 der Landesrichtlinien zur Förderung der",null,null,null,null,null,null,null,false]
[null,"Diversifizierung der Tätigkeiten im landwirtschaftlichen und landwirtschaftsnahen Bereich"]
[null,"Kurzbezeichnung der Maßnahme (max. 250 Zeichen, sonst gesondertes Blatt beifügen):"]
[]
[null,"  Die Maßnahme ist folgendem Bereich zuzurechnen: ",null,null,null,null,null,null,null,true]
[null,null,null,null,null,null,null,null,null,false]
[null,null,null,null,null,null,null,null,null,false]
[null,null,null,null,null,null,null,null,null,false]
[null,"Ort des Investitionsvorhabens:",null,null,"Gemeinde",null,"Gemarkung (Name_Nummer)",null,null,false]
[null,"Kreis","Aachen_354",null,"Alsdorf,Stadt_004",null,null,null,null,false]
[null,"geplanter Durchführungszeitraum \nvon:",null,null,null,null,"bis:",null,null,false]
[null,"3. Gesamtkosten (brutto) in Euro (lt. beiliegender Kostenaufstellung)",null,null,null,null,null,null,null,false]
[null,"bitte zuerst Angabe unter 4. und dann Kostenaufstellungen (\"Ausg…\") ausfüllen !",null,null,null,null,null,null,null,false]
[null,null,null,null,null,null,null,null,null,false]
[null,"Im … Jahr ab Bewilligung",null,null,null,"1.","2.","3.","insgesamt"]
[null,"1. Organisationsausgaben",null,null,null,{"$f":"ROUND(IF('Anh1'!E14>0,'Anh1'!E14,0),2)","v":0},{"$f":"ROUND(IF('Anh1'!F14>0,'Anh1'!F14,0),2)","v":0},{"$f":"ROUND(IF('Anh1'!G14>0,'Anh1'!G14,0),2)","v":0},{"$f":"IF(SUM(F18:H18)>0,SUM(F18:H18),0)","v":0}]
[null,"2. Startbeihilfen",null,null,null,{"$f":"ROUND(IF('Anh2'!E5>0,'Anh2'!E5,0),2)","v":0},{"$f":"ROUND(IF('Anh2'!F5>0,'Anh2'!F5,0),2)","v":0},{"$f":"ROUND(IF('Anh2'!G5>0,'Anh2'!G5,0),2)","v":0},0]
[null,"3. Einrichtung, Ausstattung, sonst. Sach.",null,null,null,{"$f":"ROUND(IF('Anh2'!E21>0,'Anh2'!E21,0),2)","v":0},{"$f":"ROUND(IF('Anh2'!F21>0,'Anh2'!F21,0),2)","v":0},{"$f":"ROUND(IF('Anh2'!G21>0,'Anh2'!G21,0),2)","v":0},0]
[null,"4. Investitionen GAKG",null,null,null,{"$f":"ROUND(IF('Anh3'!E15>0,'Anh3'!E15,0),2)","v":0},{"$f":"ROUND(IF('Anh3'!F15>0,'Anh3'!F15,0),2)","v":0},{"$f":"ROUND(IF('Anh3'!G15>0,'Anh3'!G15,0),2)","v":0},0]
[null,"5. Qualifikationsmaßnahmen",null,null,null,{"$f":"ROUND(IF('Anh2'!E28>0,'Anh2'!E28,0),2)","v":0},{"$f":"ROUND(IF('Anh2'!F28>0,'Anh2'!F28,0),2)","v":0},{"$f":"ROUND(IF('Anh2'!G28>0,'Anh2'!G28,0),2)","v":0},0]
[null,"6. nicht förderfähige Ausgaben",null,null,null,null,null,null,0]
[null,"Gesamtkosten",null,null,null,{"$f":"IF(SUM(F18:F23)>0,SUM(F18:F23),0)","v":0},{"$f":"IF(SUM(G18:G23)>0,SUM(G18:G23),0)","v":0},{"$f":"IF(SUM(H18:H23)>0,SUM(H18:H23),0)","v":0},0]
[]
[null,"4. Beantragte Förderung"]
[null,"  Es wird eine Förderung beantragt gemäß o.g. Landesrichtlinien, Ziffer …"]
[true,null,"2.1",null,"Organisationsausgaben",null,null,null,null,true]
[true,null,"2.2",null,"Startbeihilfen für Personalausgaben zur Umsetzung eines Strategiekonzepts mit Anzahl Voll-AK (rechn.)",null,null,null,true,false]
[true,null,"2.3.1",null,"Investitionen  zur Einrichtung und Ausstattung und sonstige Sachausgaben"]
[true,null,"2.3.2",null,"Investitionen im Rahmen des GAKG",null,null,true,null,true]
[true,null,"2.3.2",null,"Anlage Kurz-Umtriebs-Plantage zur Energiegewinnung (ohne Strom)"]
[true,null,"2.4",null,"Bildungsmaßnahmen und Zusatzqualifikationen"]
[null,"Beantragte Beträge in Euro"]
[null,"Im … Jahr ab Bewilligung",null,null,null,"1.","2.","3.","insgesamt"]
[null,"nach 2.1     Organisationsausgaben",null,null,null,{"$f":"ROUND(IF('Anh1'!E17>0,'Anh1'!E17,0),2)","v":0},{"$f":"ROUND(IF('Anh1'!F17>0,'Anh1'!F17,0),2)","v":0},{"$f":"ROUND(IF('Anh1'!G17>0,'Anh1'!G17,0),2)","v":0},{"$f":"IF(SUM(F36:H36)>0,F36+G36+H36,0)","v":0}]
[null,"nach 2.2.    Startbeihilfen",null,null,null,{"$f":"ROUND(IF('Anh2'!H6>0,'Anh2'!H6,0),2)","v":0},{"$f":"ROUND(IF('Anh2'!H7>0,'Anh2'!H7,0),2)","v":0},{"$f":"ROUND(IF('Anh2'!H8>0,'Anh2'!H8,0),2)","v":0},{"$f":"IF(SUM(F37:H37)>0,F37+G37+H37,0)","v":0}]
[null,"nach 2.3.1  Einrichtung, Ausstattung",null,null,null,{"$f":"ROUND(IF('Anh2'!E16>0,'Anh2'!E16,0),2)","v":0},{"$f":"ROUND(IF('Anh2'!F16>0,'Anh2'!F16,0),2)","v":0},{"$f":"ROUND(IF('Anh2'!G16>0,'Anh2'!G16,0),2)","v":0},{"$f":"IF(SUM(F38:H38)>0,F38+G38+H38,0)","v":0}]
[null,"nach 2.3.1  Marketing, sonst. Sachausg.",null,null,null,{"$f":"ROUND(IF('Anh2'!E20>0,'Anh2'!E20,0),2)","v":0},{"$f":"ROUND(IF('Anh2'!F20>0,'Anh2'!F20,0),2)","v":0},{"$f":"ROUND(IF('Anh2'!G20>0,'Anh2'!G20,0),2)","v":0},{"$f":"IF(SUM(F39:H39)>0,F39+G39+H39,0)","v":0}]
[null,"nach 2.3.2  Investitionen nach GAKG",null,null,null,{"$f":"ROUND(IF('Anh3'!E21>0,'Anh3'!E21,0),2)","v":0},{"$f":"ROUND(IF('Anh3'!F21>0,'Anh3'!F21,0),2)","v":0},{"$f":"ROUND(IF('Anh3'!G21>0,'Anh3'!G21,0),2)","v":0},{"$f":"IF(SUM(F40:H40)>0,F40+G40+H40,0)","v":0}]
[null,"nach 2.4    Qualifikationsmaßnahmen",null,null,null,{"$f":"ROUND(IF('Anh2'!E31>0,'Anh2'!E31,0),2)","v":0},{"$f":"ROUND(IF('Anh2'!F31>0,'Anh2'!F31,0),2)","v":0},{"$f":"ROUND(IF('Anh2'!G31>0,'Anh2'!G31,0),2)","v":0},{"$f":"IF(SUM(F41:H41)>0,SUM(F41:H41),0)","v":0}]
[null,"Beantragte Fördersummen",null,null,null,{"$f":"IF(SUM(F36:F41)>0,SUM(F36:F41),0)","v":0},{"$f":"IF(SUM(G36:G41)>0,SUM(G36:G41),0)","v":0},{"$f":"IF(SUM(H36:H41)>0,SUM(H36:H41),0)","v":0},{"$f":"IF(SUM(I36:I41)>0,SUM(I36:I41),0)","v":0}]
[null,{"$f":"IF(I42>200000,\"Maximal zulässige Fördersumme 200.000 €. Anpassung erforderlich!\",\"\")","v":""}]

{"sheet":"KUP","index":4,"n_rows":31,"n_cols":21,"rows_kept":31,"cut":false,"hidden":false,"merged":[[18,1,18,2],[16,1,16,2],[17,1,17,2],[11,1,11,2],[12,1,12,2],[13,1,13,2],[14,1,14,2],[3,1,4,2],[7,1,7,2],[10,1,10,2],[15,1,15,2],[8,1,8,2],[9,1,9,2],[5,1,5,2],[6,1,6,2]]}
[null,null,null,null,null,null,null,"Unternehmer-Nr.",{"$f":"'Ant1'!F12","v":0}]
[]
["Beantragte Fläche mit Kurz-Umtriebs-Plantagen (KUP) - 12 Jahre Mindeststanddauer "]
["lfd. Nr.","Feldblock-Nr. (FLIK)1",null,"Schlag-","Schlag-","Teil-","Kulturart /","Gattung,","Größe","Anzahl"]
["Feldblock1",null,null,"Nr.1","bezeichnung1","schlag1","Fruchtart1","Arten2","ha, ar 1","Bäume",null,"A","B","D","E","F","G","H","I","J","Zeile"]
[null,null,null,null,null,null,null,null,null,null,null,{"$f":"IF(A6>0,1,0)","v":0},{"$f":"IF(B6>\" \",1,0)","v":0},{"$f":"IF(D6>\" \",1,0)","v":0},{"$f":"IF(E6>\" \",1,0)","v":0},{"$f":"IF(F6>\" \",1,0)","v":0},{"$f":"IF(G6>\" \",1,0)","v":0},{"$f":"IF(H6>\" \",1,0)","v":0},{"$f":"IF(H6>0,1,0)","v":0},0,{"$f":"SUM(L6:T6)","v":0}]
[null,null,null,null,null,null,null,null,null,null,null,{"$f":"IF(A7>0,1,0)","v":0},{"$f":"IF(B7>\" \",1,0)","v":0},0,0,0,0,0,0,0,{"$f":"SUM(L7:T7)","v":0}]
[null,null,null,null,null,null,null,null,null,null,null,0,0,0,0,0,0,0,0,0,0]
[null,null,null,null,null,null,null,null,null,null,null,0,0,0,0,0,0,0,0,0,0]
[null,null,null,null,null,null,null,null,null,null,null,0,0,0,0,0,0,0,0,0,0]
[null,null,null,null,null,null,null,null,null,null,null,0,0,0,0,0,0,0,0,0,0]
[null,null,null,null,null,null,null,null,null,null,null,0,0,0,0,0,0,0,0,0,0]
[null,null,null,null,null,null,null,null,null,null,null,0,0,0,0,0,0,0,0,0,0]
[null,null,null,null,null,null,null,null,null,null,null,0,0,0,0,0,0,0,0,0,0]
[null,null,null,null,null,null,null,null,null,null,null,0,0,0,0,0,0,0,0,0,0]
[null,null,null,null,null,null,null,null,null,null,null,0,0,0,0,0,0,0,0,0,0]
[null,null,null,null,null,null,null,null,null,null,null,0,0,0,0,0,0,0,0,0,0]
["Summe",null,null,null,null,null,null,null,{"$f":"SUM(I6:I17)","v":0},{"$f":"SUM(J6:J17)","v":0},null,{"$f":"SUM(A6:A17)","v":0},{"$f":"SUM(M6:M17)","v":0},0,0,0,0,0,0,0,0]
[null,null,null,null,null,null,null,null,{"$f":"IF(I18>10,\"Die zulässige Flächenobergrenze ist überschritten!\",\" \")","v":" "},null,null,null,null,null,null,null,null,null,null,{"$f":"IFERROR(J18/I18,0)","v":0}]
[1,"die Angaben können ggf. aus dem Flächenverzeichnis übertragen werden",null,null,null,null,null,null,null,{"$f":"IF((J18/I18)<3000,\"Die Mindestbaumzahl ist unterschritten!\",\" \")","v":{"$error":"#DIV/0!"}}]
[]
[2,"Pflanzengattung und Arten"]
[null,"11 = Mandelweide (Salix triandra)*",null,"51 = Schwarzerle (Alnus glutinosa)"]
[null,"12 = Korbweide (Salix viminalis)*",null,"52 = Grauerle (Alnus incana)"]
[null,"21 = Silberpappel (Populus alba)*",null,"61 = Gemeine Esche / Fraxinus excelsior"]
[null,"22 = Graupappel (Populus canescens)*",null,"71 = Stieleiche / Quercus robur"]
[null,"23 = Schwarzpappel (Populus nigra)*",null,"72 = Traubeneiche / Quercus petraea"]
[null,"24 = Zitterpappel (Populus tremula)*",null,"73 = Roteiche / Quercus rubra"]
[null,"41 = Gemeine Birke, Hängebirke (Betula pendula)",null,"80 = andere Gattungen bzw. Arten. Sind zu benennen!"]
[]
[null,"* inkl. Kreuzungen auch mit anderen Arten dieser Gattung"]

{"sheet":"Ant4","index":5,"n_rows":53,"n_cols":13,"rows_kept":53,"cut":false,"hidden":false,"merged":[[18,2,18,6],[23,2,23,6],[58,2,58,4],[39,2,39,6],[30,3,31,3],[30,4,31,4],[30,5,31,5],[30,6,31,6],[32,3,33,3],[34,5,35,5],[34,6,35,6],[32,5,33,5],[32,6,33,6],[32,4,33,4],[36,6,37,6],[36,5,37,5],[27,6,29,6],[50,2,50,6],[60,2,60,4],[54,2,54,4],[59,2,59,4],[48,3,48,6],[36,3,37,3],[36,4,37,4],[55,2,55,4],[56,2,56,4],[57,2,57,4],[34,3,35,3],[34,4,35,4],[70,2,70,4],[71,2,71,4],[61,2,61,4],[62,2,62,4],[63,2,63,4],[64,2,64,4],[65,2,65,4],[69,2,69,4],[67,2,67,4],[68,2,68,4],[66,2,66,4]]}
[null,null,null,null,null,"Unternehmer-Nr.",{"$f":"'Ant1'!G12","v":0}]
[null,"5. Finanzierung in Euro"]
[]
[null,null,"Der Gesamtfinanzierungsbedarf in Höhe von € ",{"$f":"'Ant3'!I24","v":0},"soll mit folgenden Mitteln gedeckt werden:"]
[null,null,"Im … Jahr ab Bewilligung","1.","2.","3.","insgesamt"]
[null,null,"1.   beantragte Zuwendung",{"$f":"'Ant3'!F42","v":0},{"$f":"'Ant3'!G42","v":0},{"$f":"'Ant3'!H42","v":0},{"$f":"IF(SUM(D6:F6)>0,SUM(D6:F6),0)","v":0}]
[null,null,"2.   Summe Eigenmittel",{"$f":"D8+D9","v":0},{"$f":"E8+E9","v":0},{"$f":"F8+F9","v":0},0]
[null,null,"2.1  davon Barmittel (Guthaben)",null,null,null,0]
[null,null,"2.2  davon sonst. Eigenmittel1)",null,null,null,0]
[null,null,"3.  Fremdkapital",null,null,null,0]
[null,null,"4. Leistungen Dritter 2)",null,null,null,0]
[null,null,"5.  sonstige öffentliche Förderung 3)",null,null,null,0]
[null,null,"Finanzierungsmittel gesamt (vgl. Nr. 3.)",{"$f":"IF(SUM(D6+D8+D9+D10+D11+D12)>0,SUM(D6+D8+D9+D10+D11+D12),0)","v":0},{"$f":"IF(SUM(E6+E8+E9+E10+E11+E12)>0,SUM(E6+E8+E9+E10+E11+E12),0)","v":0},{"$f":"IF(SUM(F6+F8+F9+F10+F11+F12)>0,SUM(F6+F8+F9+F10+F11+F12),0)","v":0},0]
[null,null,"1) zu erwirtschaften, Erstattung Vorsteuer, Eigenleistung, etc."]
[null,null,"2) z.B. Spenden, Versicherungsentschädigung"]
[null,null,"3) bewilligte oder beantragte (ohne Ziffer 1)"]
[null,"6. Begründung"]
[]
[null,null,"Eine ausführliche Beschreibung und Begründung der Maßnahme sowie eine detaillierte Kostenaufstellung sind als Anlage beigefügt."]
[]
[]
[null,"7. Erklärungen, Verpflichtungen, Versicherung und Einverständnis der/des Antragsteller/in"]
[]
[null,"7.1","Das Unternehmen bzw. der Unternehmensverbund im Sinne von Artikel 2 Absatz 2 der Verordnung (EU) Nr. 1407/2013 (\"einziges Unternehmen\") hat im laufenden und den 2 vorangegangenen Jahren De-minimis-Beihilfen (VO EG/EU Nr. 1407/2013(Allg), 1408/2013(A), 717/2014(F), 360/2012(D) bzw. VorgängerVO) erhalten oder beantragt."]
[null,null,null,null,null,null,null,null,null,null,null,null,"1407/2013"]
[false,null,"       nein"," ja, folgende:",null,null,null,true]
[]
[null,null,"Zuwendungsgeber / ","Akten-","Beihilfe-","Datum des ","Allgemein (Allg), Agrar (A), DAWI (D), Fischerei (F)",null,"Allg"]
[null,null,"Beihilfeempfänger","zeichen","wert","Bewilligungs-",null,null,"A"]
[null,null,null,null,"€","bescheides",null,null,"D"]
[null,null,null,null,null,null,null,null,"F"]
[]
[]
[]
[]
[]
[]
[null,null,null,null,null,null,null,{"$f":"SUM(E31:E38)","v":0}]
[]
[null,null,"Die hier beantragte De-minimis-Beihilfe (beantragte Zuwendung) wird mit weiteren Beihilfen für dieselben förderfähigen Ausgaben kumuliert"]
[]
[null,null,"      nein"," ja, folgende (siehe Ergänzung zu Anlage 14)"]
[]
[null,"7.2","Für das Vorhaben sind / werden Mittel aus anderen öffentlichen Förderprogrammen beantragt."]
[null,null,"(z.B. bei der Bundesagentur für Arbeit, Bezirksregierung, Kammer, Stadt/Gemeinde) "]
[]
[true,null,"       nein","ja und zwar",null,null,null,false]
[]
[null,null,null,"Mit der Maßnahme darf ggf. nicht begonnen werden, bevor die Bewilligung aller beantragten Fördermittel bekannt gegeben wurde."]
[]
[null,"7.3","Mit dem Vorhaben werden Anlagen bzw. Kurzumtriebsplanplantagen beantragt, die nach dem Eneuerbaren Energien Gesetz förderfähig sind bzw. für deren Biomasse eine Vergütung in Anspruch genommen wird."]
[false]
[true,null,"       nein","ja",null,null,null,false]

{"sheet":"Ant5","index":6,"n_rows":33,"n_cols":8,"rows_kept":33,"cut":false,"hidden":false,"merged":[[29,2,29,7],[8,2,8,7],[6,2,6,7],[7,2,7,7],[32,2,32,7],[25,2,25,7],[14,2,14,7],[28,2,28,7],[20,2,20,7],[23,2,23,7],[22,2,22,7],[21,2,21,7],[18,2,18,7],[31,2,31,7],[27,2,27,7],[30,2,30,7],[26,2,26,7],[2,2,2,7],[24,2,24,7],[19,2,19,6],[0,2,0,4],[1,2,1,7],[4,2,4,7],[17,2,17,7],[5,2,5,7],[15,2,15,6],[11,2,11,7],[12,2,12,7],[16,2,16,7],[13,2,13,7],[10,2,10,6],[9,2,9,7],[3,2,3,7]]}
[null,"7.4","Ich erkläre / wir erklären, dass ",null,null,null,"Unternehmer-Nr.",{"$f":"'Ant1'!G12","v":0}]
[null,"7.4.1","mir / uns die Landesrichtlinien über die Gewährung von Zuwendungen zur Förderung der Diversifizierung der Tätigkeiten im landwirtschaftlichen und landwirtschaftsnahen Bereich in der gültigen Fassung sowie die dazugehörigen Rechtsgrundlagen bekannt sind (Der Wortlaut ist einsehbar über folgende Internetseiten: EU -  www.eur-lex.europa.eu, Bund - www.gesetze-im-internet.de, Land - www.lv.recht.nrw.de), "]
[null,"7.4.2","die Angaben in diesem Antrag (einschließlich der Antragsunterlagen) vollständig und richtig sind,"]
[null,"7.4.3","die Angaben zur Person und zur Sache zum Zwecke einer zügigen Bearbeitung des Antrages sowie zu statistischen Zwecken gespeichert werden und eine Belehrung über die Bedeutung und Wirkung der Erklärung sowie über deren Widerrufbarkeit erfolgt ist,"]
[null,"7.4.4","mit der Maßnahme noch nicht begonnen wurde und vor der Bekanntgabe des Zuwendungsbescheides nicht begonnen wird. Als Maßnahmebeginn ist grundsätzlich der Abschluss eines der Ausführung zuzurechnenden Lieferungs- oder Leistungsvertrages zu werten,"]
[null,"7.4.5","ich bin / wir sind damit einverstanden, dass die Einhaltung der eingegangenen Verpflichtungen und die Angaben in und zum Antrag auch an Ort und Stelle durch die zuständigen Prüfungsorgane der Bewilligungsbehörde, des Landes und des Bundes kontrolliert werden kann,"]
[null,"7.4.6","ich / wir oder meine / unsere Vertreter / -in werden im Falle einer Prüfung dem beauftragten Kontrollpersonal das Betretungsrecht und das Recht auf die angemessene Verweildauer auf den Grundstücken und in den Betriebs- und Geschäftsräumen sowie die Einsichtnahme in die für die Beurteilung der Zuwendungsvoraussetzungen notwendigen Unterlagen einräumen und die notwendigen Auskünfte erteilen,"]
[null,"7.4.7","das Unternehmen sich nicht in Schwierigkeiten gemäß jeweils gültigen Fassung der Mitteilung der Kommission \"Leitlinien der Gmeinschaft für staatliche Beihilfen zur Rettung und Umstrukturierung von Unternehmen in Schwierigkeiten\" (Abl. C 244 vom 1.10.2004, S. 2) befinden,"]
[null,"7.4.8","ich / wir in einem von mir/uns kontrollierten Unternehmen keine schwebende Rückforderung nach einer vorherigen Entscheidung der Europäischen Kommission erhalten habe/n, wonach eine Beihilfe als unrechtmäßig und nicht vereinbar mit dem Gemeinsamen Markt erklärt wurde,"]
[null,"7.4.9","das antragstellende Unternehmen ein kleines Unternehmen nach der Definition in Verordnung (EU) Nr. 651/2014 Anhang I ist."]
[null,"7.5","Ich verpflichte mich /  wir verpflichten uns,"]
[null,"7.5.1","die in den Landesrichtlinien über die Gewährung von Zuwendungen zur Förderung der Diversifizierung der Tätigkeiten im landwirtschaftlichen und landwirtschaftsnahen Bereich (in gültiger Fassung) genannten Bedingungen einzuhalten, insbesondere die Verpflichtung, das Vorhaben auf mindestens 5 Jahre anzulegen,"]
[null,"7.5.2","jede Änderung schriftlich mitzuteilen und die sich auf die Zuwendung beziehenden Unterlagen bis zum 31.12.2029 aufzubewahren,"]
[null,"7.5.3","jede Abweichung vom Antrag sowie alle Tatsachen, die der Bewilligung, Gewährung, Weitergewährung, Inanspruchnahme oder dem Belassen der Zuwendung entgegenstehen oder für die Rückforderung der Zuwendung erheblich sind, unverzüglich schriftlich mitzuteilen,"]
[null,"7.5.4","alle Änderungen hinsichtlich meiner in InVeKoS gespeicherten Adressdaten, einschließlich der Bankverbindung, unverzüglich der für mich / uns zuständigen Kreisstelle beim Direktor der Landwirtschaftskammer NRW als Landesbeauftragter anzuzeigen."]
[null,"7.6","Ich versichere / wir versichern,"]
[null,"7.6.1","dass gegen mich / uns in den letzten fünf Jahren weder eine Geldbuße von wenigstens 2.500 Euro nach § 404 Abs. 2 Nr. 3 des Dritten Buches Sozialgesetzbuch rechtskräftig verhängt, noch dass ich / wir rechtskräftig nach den §§ 10, 10a oder 11 des Schwarzarbeitsbekämpfungsgesetzes zu einer Freiheitsstrafe von mehr als drei Monaten oder einer Geldstrafe von mehr als 90 Tagessätzen verurteilt wurde/n."]
[null,"7.6.2","dass die beihilferechtlichen Förderhöchstgrenzen nicht überschritten werden. Eine Kumulation nur mit Mitteln der Landwirtschaftlichen Rentenbank oder der Förderbanken der Länder ist möglich. Änderungen zu den Angaben der De-minimis-Beihilfen werden mitgeteilt, sofern mir vor sie mir/uns vor der Zusage für die hier beantragte Förderung bekannt werden."]
[null,"7.6.3","mit der dargestellten Investition die baulichen und technischen Anforderungen für eine besonders tiergerechte Haltung von Pferden zu erfüllen. Die entsprechenden Kriterien nach der Anlage 1 zu den Richtlinien wurden mir bekannt gegeben. Alle Kriterien werden bis zum Ende des Zweckbindungszeitraums erfüllt.     "]
[null,"7.7","Mir / Uns ist bekannt, dass"]
[null,"7.7.1","die Bewilligungsbehörde die ihr vorliegenden Unterlagen des Betriebes zur Entscheidung über diesen Antrag heranziehen kann,"]
[null,"7.7.2","die Erhebung vorstehender Angaben auf § 26 Abs. 2 Satz 1 und 2 des Verwaltungsverfahrensgesetzes des Landes NRW beruht, die Kenntnis der erbetenen Angaben der Überprüfung der Voraussetzungen für eine Zuschussgewährung dient und dass eine Berücksichtigung nur möglich ist, wenn die Angaben in diesem Antragsvordruck enthalten sind,"]
[null,"7.7.3","die Angaben in und zum Antrag an die zuständigen Organe des Landes, des Bundes und der EU übermittelt werden können,"]
[null,"7.7.4","von der Bewilligungsbehörde weitere Unterlagen, die zur Beurteilung der Antragsberechtigung, der Antragsvoraussetzungen sowie zur Feststellung der Höhe der Zuwendung erforderlich sind, anfordert werden können,"]
[null,"7.7.5","falsche Angaben und / oder die Nichteinhaltung der Verpflichtungen Erstattungsansprüche und Sanktionen auslösen und der Erstattungsanspruch mit dem in § 49a VwVfG in jeweils gültiger Fassung angegebenen v. H.-Wert über dem jeweiligen Basiszinssatz nach § 247 BGB jährlich zu verzinsen ist,"]
[null,"7.7.6","die Bewilligung der Zuwendung nach festgesetzten Prioritäten vorgenommen wird,"]
[null,"7.7.7","Vorhaben die aus Mitteln anderer öffentlicher Förderungsprogramme gefördert werden, nicht gleichzeitig nach dem Diversifizierungsprogramm gefördert werden dürfen,"]
[null,"7.7.8","ein Anspruch auf Gewährung einer Zuwendung nicht besteht, vielmehr entscheidet die Bewilligungsbehörde aufgrund ihres pflichtgemäßen Ermessens im Rahmen verfügbarer Haushaltsmittel, "]
[null,"7.7.9","alle Angaben dieses Antrages, von denen Bewilligung, Gewährung, Weitergewährung oder das Belassen der Zuwendung abhängig ist, subventionserheblich im Sinne § 264 Strafgesetzbuch (Erstes Gesetz zur Bekämpfung der Wirtschaftskriminalität, 1. WiKG) in Verbindung mit § 1 des Gesetzes über die Vergabe von Subventionen nach Landesrecht (Landessubventionsgesetz) in der jeweils gültigen Fassung sind, "]
[null,"7.7.10","der Zuwendungsbescheid erlischt, wenn ich / wir nicht innerhalb von 6 Monaten nach Erhalt des Zuwendungsbescheides mit der zu fördernden Maßnahme im Wesentlichen begonnen habe / -n,"]
[null,"7.7.11","der Beginn mittels des von der Bewilligungsbehörde vorgegebenen Formulars unverzüglich (d.h. in der Regel spätestens zwei Wochen nach erfolgter Auftragsvergabe oder Durchführung von Arbeiten) nachzuweisen ist,"]
[null,"7.7.12","alle Zuschusszahlungen ausschließlich auf die von mir / uns angezeigte und im InVeKoS gespeichete Bankverbundung erfolgen,"]
[null,"7.7.13","eine Förderung unter dem Vorbehalt des Widerrufs für den Fall erfolgt, dass geförderte Bauten und bauliche Anlagen innerhalb von 12 Jahren ab Fertigstellung (Bauabnahme) und Maschinen, technische Einrichtungen und Geräte innerhalb eines Zeitraums von 5 Jahren ab Lieferung veräußert oder nicht mehr dem Zuwendungszweck entsprechend verwendet werden."]

{"sheet":"Ant6","index":7,"n_rows":41,"n_cols":10,"rows_kept":41,"cut":false,"hidden":false,"merged":[[29,1,29,6],[23,1,23,6],[21,1,21,6],[24,1,24,6],[19,1,19,6],[18,1,18,6],[20,1,20,6],[22,1,22,6],[17,1,17,6],[16,1,16,6],[15,1,15,6],[13,1,13,6],[1,8,2,8],[3,1,3,6],[7,1,7,6],[8,1,8,6],[0,8,0,9],[14,1,14,6],[6,1,6,6],[10,1,10,6],[11,1,11,6],[12,1,12,6],[9,1,9,6],[4,1,4,6],[5,1,5,6],[1,9,2,9],[30,1,30,6],[34,0,34,3],[34,5,34,9],[38,0,38,3],[40,0,40,3],[40,5,40,9],[38,5,38,9],[36,0,36,3],[36,5,36,9]]}
["8. Anlagen",null,null,null,null,"Unternehmer-Nr.",{"$f":"'Ant1'!G12","v":0},null,"nur für Kreisstelle"]
[null,null,null,null,null,null,null,null,"liegt vor","ge-prüft, aner-kannt"]
["(Die beigefügten und ggf. nachgereichten Anlagen sind Bestandteil meines / unseres Antrages)"]
["1.","Ergänzungsblätter (Kostenaufstellungen / Zuschussberechnungen - immer erforderlich)",null,null,null,null,null,false,"¨","¨"]
["2.","Betriebsspiegel (immer erforderlich)",null,null,null,null,null,false,"¨","¨"]
["3.","Investitionskonzept (DIV) mit Projektbeschreibung (immer erforderlich)",null,null,null,null,null,false,"¨","¨"]
["4.","Nachweis/e zur Mitgliedschaft in der Landwirtschaftl. Alterskasse (erforderlich)",null,null,null,null,null,false,"¨","¨"]
["5.","letzter Einkommenssteuerbescheid bzw. der letzten drei Jahre (bei GAK) (erforderlich)",null,null,null,null,null,false,"¨","¨"]
["6.\n\n","Buchführungsabschlüsse der beiden letzten Jahre (Bilanz, G+V, Einlagen/Entnahmen,\nInventarliste) falls nicht vorhanden, muss ggf. über andere Unterlagen die Wirtschaftlichkeit des \nUnternehmens nachgewiesen werden",null,null,null,null,null,false,"¨","¨"]
["7.","Berechnung der Umsatzerlöse aus bodengebundener Produktion",null,null,null,null,null,false,"¨","¨"]
["8.","Kreditbereitschaftserklärung (bei Kreditaufnahme immer erforderlich)",null,null,null,null,null,false,"¨","¨"]
["9.","Nachweis der baren Eigenmittel (bei über 20.000 Euro baren Eigenmitteln erforderlich)",null,null,null,null,null,false,"¨","¨"]
["10.","Kooperationsvereinbarung (bei Kooperationen erforderlich)",null,null,null,null,null,false,"¨","¨"]
["11.","Gewerbeanmeldung/Gewerberegisterauskunft (bei Kooperation mit Gewerbe erforderlich)",null,null,null,null,null,false,"¨","¨"]
["12.","Kopie des Gesellschaftsvertrags, der Satzung (bei Gesellschaft, Verein etc. erforderlich)",null,null,null,null,null,false,"¨","¨"]
["13.","Kopie des Pachtvertrags (bei Maßnahmen auf Pachtfläche erforderlich)",null,null,null,null,null,false,"¨","¨"]
["14.\n","Bescheinigung/Antrag sonstige öffentliche Förderung, ggf. Ergänzung zur Anlage z.B. De-minimis, Beihilfewert (sofern erforderlich)",null,null,null,null,null,false,"¨","¨"]
["15.","Baurechtliche Genehmigung inkl. 2-fachen Bauplänen (sofern erforderlich)",null,null,null,null,null,false,"¨","¨"]
["16.","Skizze / Lageplan zur durchzuführenden Maßnahme (sofern erforderlich)",null,null,null,null,null,false,"¨","¨"]
["17.\n","Kostenvoranschläge (bei Förderung nach Ziffer 2.3 der Richtlinien; Einzelkosten ab 5.000 Euro netto), bautechnische Stellungnahme bei bes. tiergerechter Pferdehaltung",null,null,null,null,null,false,"¨","¨"]
["18.\n","Arbeitsvertrag (erforderlich bei Antragstellern gemäß der Ziffer 3.1.2, ggf. gemäß der Ziffern 3.2.3 und 3.3 der Landesrichtlinien)",null,null,null,null,null,false,"¨","¨"]
["19.","Vollmacht (bei Gesellschaften, Kooperationen, sonst. Gemeinschaften)",null,null,null,null,null,false,"¨","¨"]
["20.","Dienstleistungsvertrag / Betreuervertrag / Vereinbarung mit Gebührenrechnung",null,null,null,null,null,false,"¨","¨"]
["21.","Antrag auf Bescheinigung der Förderunschädlichkeit des Beginns vor der Bewilligung",null,null,null,null,null,false,"¨","¨"]
["22.","Nachweis über zu erbringende Eigenleistung (sofern erforderlich)",null,null,null,null,null,false,"¨","¨"]
["23.","Darstellung des Bezugs zum ländlicher Raum (sofern erforderlich)",null,null,null,null,null,false,"¨","¨"]
["24.","Bescheinigung der Gemeinnützigkeit (sofern erforderlich)",null,null,null,null,null,false,"¨","¨"]
["25.","Flächenverzeichnis (nur bei KUP erforderlich)",null,null,null,null,null,false,"¨","¨"]
["26.","Nachweis der Verwertungsmöglichkeit des Aufwuchses (nur bei KUP erforderlich)",null,null,null,null,null,false,"¨","¨"]
["27.","Nachweis Leistungen Dritter (sofern erforderlich)",null,null,null,null,null,false,"¨","¨"]
["28.",null,null,null,null,null,null,false,"¨","¨"]
[]
["Ich versichere die Richtigkeit und Vollständigkeit meiner Angaben."]
[]
[]
[]
["Ort, Datum",null,null,null,null,"Ort, Datum"]
[]
[]
[]
["Unterschrift Antragsteller und Ehegatte, Bevollmächtigter",null,null,null,null,"Unterschrift Antragsteller und Ehegatte, Bevollmächtigter"]

{"sheet":"Hilfe","index":8,"n_rows":51,"n_cols":2,"rows_kept":51,"cut":false,"hidden":false,"merged":[]}
[null,"Zur Neuberechnung bitte anklicken:"]
[null,{"$f":"\"Ausfüllkontrolle für Betrieb \"& 'Ant1'!G12 &\" \" & 'Ant1'!B14","v":"Ausfüllkontrolle für Betrieb  "}]
["am",{"$f":"NOW()","v":"2016-08-30T11:14:32"}]
[1,"Pl 01: Name fehlt."]
[2,"Pl 03: Betriebsstättennummer fehlt oder ist unvollständig."]
[3,"Pl 04: Anschrift fehlt."]
[4,"Pl 05: PLZ fehlt oder ist unvollständig."]
[5,"Pl 06: Wohnort fehlt."]
[6,"Pl 07: Unternehmernummer zu 1.2.2 hat falsches Format."]
[7,"Pl 12: Jahr des ersten ESt-Bescheides ist unplausibel oder fehlt."]
[8,"Pl 137: Ort der Durchführung GEMARKUNG unter Ziffer 2. fehlt"]
[9,"Pl 15: Maßnahmenbeschreibung unter Ziffer 2. fehlt"]
[10,"Pl 17: Beginn der Durchführung liegt in der Vergangenheit oder fehlt."]
[11,"Pl 19: Ende der Durchführung ist unplausibel."]
[12,"Pl 20: Organisationsausgaben - Angabe in Abschnitt 3 und 4 nicht plausibel"]
[13,"Pl 21: Startbeihilfen - Angabe in Abschnitt 3 und 4 nicht plausibel"]
[14,"Pl 22: Einrichtung, Ausstattung, sonst. Sachausgaben - Angabe in Abschnitt 2 und 3 nicht plausibel"]
[15,"Pl 23: Investitionen GAKG - Angabe in Abschnitt 3 und 4 nicht plausibel"]
[16,"Pl 24: Bildungsmaßnahmen - Angabe in Abschnitt 3 und 4 nicht plausibel"]
[17,"Pl 28: Gesamtkosten unter 1.000 Euro in Abschnitt 3."]
[18,"Pl 29: Organisationsausgaben - Angabe in Abschnitt 4 nicht plausibel"]
[19,"Pl 30: Startbeihilfen - Angabe in Abschnitt 4 nicht plausibel"]
[20,"Pl 31: Einrichtung, Ausstattung, sonst. Sachausgaben - Angabe in Abschnitt 4 nicht plausibel"]
[21,"Pl 32: Investitionen GAKG - Angabe in Abschnitt 4 nicht plausibel"]
[22,"Pl 33: Bildungsmaßnahmen - Angabe in Abschnitt 4 nicht plausibel"]
[23,"Pl 34: Gesamtförderung unter 1.000 Euro in Abschnitt 4 - Kann das sein?"]
[24,"Pl 122: KUP: Zeile 2, Angaben unvollständig eingetragen."]
[25,"Pl 123: KUP: Zeile 3, Angaben unvollständig eingetragen."]
[26,"Pl 124: KUP: Zeile 4, Angaben unvollständig eingetragen."]
[27,"Pl 125: KUP: Zeile 5, Angaben unvollständig eingetragen."]
[28,"Pl 126: KUP: Zeile 6, Angaben unvollständig eingetragen."]
[29,"Pl 127: KUP: Zeile 7, Angaben unvollständig eingetragen."]
[30,"Pl 128: KUP: Zeile 8, Angaben unvollständig eingetragen."]
[31,"Pl 129: KUP: Zeile 9, Angaben unvollständig eingetragen."]
[32,"Pl 130: KUP: Zeile 10, Angaben unvollständig eingetragen."]
[33,"Pl 131: KUP: Zeile 11, Angaben unvollständig eingetragen."]
[34,"Pl 132: KUP: Zeile 12, Angaben unvollständig eingetragen."]
[35,"Pl 64: Ergänzungsblätter fehlen!"]
[36,"Pl 65: Betriebsspiegel fehlt!"]
[37,"Pl 66: Investitionskonzept fehlt!"]
[38,"Pl 67: ESt-Bescheide fehlen!"]
[39,"Pl 68: Buchführungsabschlüsse fehlen!"]
[40,"Pl 69: Bescheinigung der Alterskasse fehlt!"]
[41,"Pl 74: Baugenehmigung fehlt!"]
[42,"Pl 77: Flächenverzeichnis bei KUP fehlt!"]
[43,"Pl 78: Nachweis der Verwertungsmöglichkeit des Aufwuchses bei KUP fehlt!"]
[44,"Pl 82: Name fehlt im Betriebsspiegel."]
[45,"Pl 83: Unternehmernummer im Betriebsspiegel unplausibel."]
[46,"Pl 84: IST-Jahr im Betriebsspiegel unplausibel."]
[47,"Pl 99: Angabe Arbeitskräfte im Betriebsspiegel unplausibel."]
[48,"Pl 103: Angabe der bewirtschafteten Fläche im Betriebsspiegel unplausibel."]

{"sheet":"Anh1","index":9,"n_rows":19,"n_cols":9,"rows_kept":19,"cut":false,"hidden":false,"merged":[[1,1,1,6],[18,3,18,6],[2,4,2,7],[2,1,2,3],[3,1,3,2]]}
[null,null,null,null,null,null,"Unternehmer-Nr.",{"$f":"'Ant1'!G12","v":0}]
[100,"2.1 Organisationsausgaben für neue Einkommensquellen"]
[null,null,null,null,"Beträge in Euro"]
[null,null,null,"Jahr",1,{"$f":"IF(ISNUMBER(E4),E4+1,\" \")","v":2},{"$f":"IF(ISNUMBER(E4),E4+2,\" \")","v":3},"insgesamt"]
[null,"1.","Beratung","brutto",{"$f":"AusgOrgaBerat!C31","v":0},{"$f":"AusgOrgaBerat!D31","v":0},{"$f":"AusgOrgaBerat!E31","v":0},{"$f":"E5+F5+G5","v":0}]
[null,null,null,"USt.",{"$f":"AusgOrgaBerat!C30","v":0},{"$f":"AusgOrgaBerat!D30","v":0},{"$f":"AusgOrgaBerat!E30","v":0},{"$f":"E6+F6+G6","v":0}]
[null,null,null,"förderfähig",{"$f":"AusgOrgaBerat!C29","v":0},{"$f":"AusgOrgaBerat!D29","v":0},{"$f":"AusgOrgaBerat!E29","v":0},0]
[null,"2.","Konzeption","brutto",{"$f":"AusgOrgaKonzep!C31","v":0},{"$f":"AusgOrgaKonzep!D31","v":0},{"$f":"AusgOrgaKonzep!E31","v":0},0]
[null,null,null,"USt.",{"$f":"AusgOrgaKonzep!C30","v":0},{"$f":"AusgOrgaKonzep!D30","v":0},{"$f":"AusgOrgaKonzep!E30","v":0},0]
[null,null,null,"förderfähig",{"$f":"AusgOrgaKonzep!C29","v":0},{"$f":"AusgOrgaKonzep!D29","v":0},{"$f":"AusgOrgaKonzep!E29","v":0},0]
[null,"3.","Geschäfts-","brutto",{"$f":"AusgOrgaGeschäft!C31","v":0},{"$f":"AusgOrgaGeschäft!D31","v":0},{"$f":"AusgOrgaGeschäft!E31","v":0},0]
[null,null,"ausgaben","USt.",{"$f":"AusgOrgaGeschäft!C30","v":0},{"$f":"AusgOrgaGeschäft!D30","v":0},{"$f":"AusgOrgaGeschäft!E30","v":0},0]
[null,null,null,"förderfähig",{"$f":"AusgOrgaGeschäft!C29","v":0},{"$f":"AusgOrgaGeschäft!D29","v":0},{"$f":"AusgOrgaGeschäft!E29","v":0},0]
[null,"4.","Insgesamt","brutto",{"$f":"E5+E8+E11","v":0},0,0,0]
[null,null,null,"USt.",{"$f":"E6+E9+E12","v":0},{"$f":"F6+F9+F12","v":0},{"$f":"G6+G9+G12","v":0},0]
[180,null,null,"förderfähig",0,0,0,0]
[190,"5.","Zuschuss bis zu 50 %",null,{"$f":"IF(AND(H19=2,H16>=1000),ROUNDDOWN(MIN(E16*50%,25000),2),IF(AND(H19=1,H16>=1000),ROUNDDOWN(MIN(E16*50%,50000),2),0))","v":0},{"$f":"IF(AND(H19=2,ISNUMBER(E17),H16>=1000),ROUNDDOWN(MIN(F16*50%,25000-E17),2), IF(AND(H19=1,ISNUMBER(E17),H16>=1000),ROUNDDOWN(MIN(F16*50%,50000-E17),2),0))","v":0},{"$f":"IF(AND(H19=2,H16>=1000,ISNUMBER(E17)),ROUNDDOWN(MIN(G16*50%,25000-E17-F17),2), IF(AND(H19=1,H16>=1000,ISNUMBER(E17)),ROUNDDOWN(MIN(G16*50%,50000-E17-F17),2),0))","v":0},{"$f":"IF(ISNUMBER(E17+F17+G17),E17+F17+G17,0)","v":0},{"$f":"IF(H19=1,\"max. 50.000 €\",\"max.= 25.000 €\")","v":"max.= 25.000 €"}]
[null,null,null,null,{"$f":"IF(H17<1000,\"Beträge überschreiten nicht die Bagatellegrenze!\",\"\")","v":"Beträge überschreiten nicht die Bagatellegrenze!"},null,null,null,"min.= 1.000 €"]
[null,null,null,"Bei Kooperation \"1\", sonst \"2\" eintragen >>>",null,null,null,2]

{"sheet":"Anh2","index":10,"n_rows":31,"n_cols":9,"rows_kept":31,"cut":false,"hidden":false,"merged":[[33,1,33,6],[12,1,13,2],[16,1,17,2],[20,1,21,2],[25,1,25,3],[32,1,32,7],[27,1,28,2],[9,1,9,6],[1,1,1,6],[24,1,24,6],[12,0,13,0],[16,0,17,0]]}
[null,null,null,null,null,null,"Unternehmer-Nr.",{"$f":"'Ant1'!G12","v":0}]
[200,"2.2 Startbeihilfen für neue Einkommensquellen"]
[null,null,null,null,null,null,"Beträge in Euro"]
[null,null,".. Jahr ab Bewilligung",null,"1.","2.","3.","insgesamt"]
[280,null,"Ausgaben in dem Jahr",null,{"$f":"AusgStartbeih!C29","v":0},{"$f":"AusgStartbeih!D29","v":0},{"$f":"AusgStartbeih!E29","v":0},{"$f":"E5+F5+G5","v":0}]
[291,null,"Zuschuss 1. Jahr","bis zu 60 %",{"$f":"MIN(ROUNDDOWN(E5*60%,2),24000)","v":0},null,null,{"$f":"E6","v":0},"max= 24.000 €"]
[292,null,"Zuschuss 2. Jahr","bis zu 50 %",null,{"$f":"MIN(ROUNDDOWN(F5*50%,2),20000)","v":0},null,{"$f":"F7","v":0},"max= 20.000 €"]
[293,null,"Zuschuss 3. Jahr","bis zu 40 %",null,null,{"$f":"MIN(ROUNDDOWN(G5*40%,2),16000)","v":0},{"$f":"G8","v":0},"max= 16.000 €"]
[null,null,null,null,null,null,"insgesamt",{"$f":"IF(H6+H7+H8>0,IF(H6+H7+H8<1000,0,H6+H7+H8),0)","v":0},"min= 1000 €"]
[300,"2.3.1 Sachausgaben für neue Einkommensquellen"]
[null,null,null,null,null,null,"Beträge in Euro"]
[null,null,"Jahr",null,1,{"$f":"IF(ISNUMBER(E12),E12+1,\" \")","v":2},{"$f":"IF(ISNUMBER(E12),E12+2,\" \")","v":3},"insgesamt"]
[310,"1. Einrichtung und Ausstattung",null,"brutto",{"$f":"AusgStratEuA!D31","v":0},{"$f":"AusgStratEuA!E31","v":0},{"$f":"AusgStratEuA!F31","v":0},{"$f":"E13+F13+G13","v":0}]
[null,null,null,"USt. ",{"$f":"AusgStratEuA!D30","v":0},{"$f":"AusgStratEuA!E30","v":0},{"$f":"AusgStratEuA!F30","v":0},0]
[null,null,"LR 2.3.1.1    5.4.3 (-1)","förderfähig",{"$f":"AusgStratEuA!D29","v":0},{"$f":"AusgStratEuA!E29","v":0},{"$f":"AusgStratEuA!F29","v":0},0]
[319,null,"Zuschuss bis zu 25 %",null,{"$f":"MIN(ROUNDDOWN(E15*25%,2),25000)","v":0},{"$f":"MIN(ROUNDDOWN(F15*25%,2),25000-E16)","v":0},{"$f":"MIN(ROUNDDOWN(G15*25%,2),25000-E16-F16)","v":0},{"$f":"E16+F16+G16","v":0},"max= 25.000 €"]
["320\n","2. Marketingmaßnahmen, \n    sonst. Sachausgaben",null,"brutto",{"$f":"AusgStratSach!D31","v":0},{"$f":"AusgStratSach!E31","v":0},{"$f":"AusgStratSach!F31","v":0},0]
[null,null,null,"USt.",{"$f":"AusgStratSach!D30","v":0},{"$f":"AusgStratSach!E30","v":0},{"$f":"AusgStratSach!F30","v":0},0]
[null,null,"LR 2.3.1.2   5.4.3 (-2)","förderfähig",{"$f":"AusgStratSach!D29","v":0},{"$f":"AusgStratSach!E29","v":0},{"$f":"AusgStratSach!F29","v":0},0]
[329,null,"Zuschuss bis zu 50 %",null,{"$f":"MIN(ROUNDDOWN(E19*50%,2),25000)","v":0},{"$f":"MIN(ROUNDDOWN(F19*50%,2),25000-E20)","v":0},{"$f":"MIN(ROUNDDOWN(G19*50%,2),25000-E20-F20)","v":0},0,"max= 25.000 €"]
[null,"3. LR Ziffer 2.3.1 zusammen",null,"brutto",{"$f":"E13+E17","v":0},0,0,{"$f":"E21+F21+G21","v":0}]
[null,null,null,"USt.",0,0,0,{"$f":"E22+F22+G22","v":0}]
[380,null,null,"förderfähig",0,0,0,{"$f":"E23+F23+G23","v":0}]
[null,null,"Insgesamt",null,0,0,0,{"$f":"E24+F24+G24","v":0},"min.= 1000 €"]
[400,"2.4 Qualifizierungsmaßnahmen für neue Einkommensquellen"]
[null,null,null,null,null,null,"Beträge in Euro"]
[null,null," Jahr",null,1,{"$f":"IF(ISNUMBER(E27),E27+1,\" \")","v":2},{"$f":"IF(ISNUMBER(E27),E27+2,\" \")","v":3},"insgesamt"]
[null,"Ausgaben für Seminare, Kurse, Lehrgänge",null,"brutto",{"$f":"AusgQuali!C31","v":0},{"$f":"AusgQuali!D31","v":0},{"$f":"AusgQuali!E31","v":0},{"$f":"SUM(E28:G28)","v":0}]
[null,null,null,"USt.",{"$f":"AusgQuali!C30","v":0},{"$f":"AusgQuali!D30","v":0},{"$f":"AusgQuali!E30","v":0},{"$f":"SUM(E29:G29)","v":0}]
[480,null,null,"förderfähig",{"$f":"AusgQuali!C29","v":0},{"$f":"AusgQuali!D29","v":0},{"$f":"AusgQuali!E29","v":0},{"$f":"SUM(E30:G30)","v":0}]
[490,null,"Zuschuss bis zu 80 %",null,{"$f":"IF(H30>=200,ROUNDDOWN(MIN(E30*80%,1000),2),0)","v":0},{"$f":"IF(H30>=200,ROUNDDOWN(MIN(F30*80%,1000-E31),2),0)","v":0},{"$f":"IF(H30>=200,ROUNDDOWN(MIN(G30*80%,1000-E31-F31),2),0)","v":0},{"$f":"E31+F31+G31","v":0},"max.= 1000 €; min.= 200 €"]

{"sheet":"Anh3","index":11,"n_rows":28,"n_cols":9,"rows_kept":28,"cut":false,"hidden":false,"merged":[[1,1,1,6],[25,1,25,7],[26,1,26,7],[27,1,27,7],[2,1,2,3],[2,4,2,7],[3,1,3,2],[23,0,23,7],[19,1,19,3]]}
[null,null,null,null,null,null,"Unternehmer-Nr.",{"$f":"'Ant1'!G12","v":0}]
[500,"2.3.2 Ausgaben für GAK-Maßnahmen"]
[null,null,null,null,"Beträge in Euro"]
[null,null,null,"Jahr",1,2,3,"insgesamt"]
[null,"1.","Errichtung, Modernisierung","brutto",{"$f":"AusgGAKImmo!D31","v":0},{"$f":"AusgGAKImmo!E31","v":0},{"$f":"AusgGAKImmo!F31","v":0},{"$f":"E5+F5+G5","v":0}]
[null,null,null,"USt.",{"$f":"AusgGAKImmo!D30","v":0},{"$f":"AusgGAKImmo!E30","v":0},{"$f":"AusgGAKImmo!F30","v":0},0]
[null,null,null,"förderfähig",{"$f":"AusgGAKImmo!D29","v":0},{"$f":"AusgGAKImmo!E29","v":0},{"$f":"AusgGAKImmo!F29","v":0},0]
[null,"2.","Maschinen und Anlagen","brutto",{"$f":"AusgGAKMasch!D31","v":0},{"$f":"AusgGAKMasch!E31","v":0},{"$f":"AusgGAKMasch!F31","v":0},0]
[null,null,null,"USt.",{"$f":"AusgGAKMasch!D30","v":0},{"$f":"AusgGAKMasch!E30","v":0},{"$f":"AusgGAKMasch!F30","v":0},0]
[null,null,null,"förderfähig",{"$f":"AusgGAKMasch!D29","v":0},{"$f":"AusgGAKMasch!E29","v":0},{"$f":"AusgGAKMasch!F29","v":0},0]
[null,"3.","Allgemeiner Aufwand","brutto",{"$f":"AusgGAKallg.Auf!D31","v":0},{"$f":"AusgGAKallg.Auf!E31","v":0},{"$f":"AusgGAKallg.Auf!F31","v":0},0]
[null,null,null,"USt.",{"$f":"AusgGAKallg.Auf!D30","v":0},{"$f":"AusgGAKallg.Auf!E30","v":0},{"$f":"AusgGAKallg.Auf!F30","v":0},0]
[530,null,null,"netto",{"$f":"AusgGAKallg.Auf!D29","v":0},{"$f":"AusgGAKallg.Auf!E29","v":0},{"$f":"AusgGAKallg.Auf!F29","v":0},0]
[]
[null,"4.","Summen","brutto",{"$f":"E5+E8+E11","v":0},0,0,0]
[null,null,null,"USt.",0,0,0,0]
[540,null,null,"förderfähig",0,0,0,0]
[null,"Förderberechnung bez. Nr. 3"]
[null,null,"anerkennbar von 3.","max. 12%",{"$f":"MIN(E13,H19)","v":0},{"$f":"MIN(F13,H19-E19)","v":0},{"$f":"MIN(G13,H19-E19-F19)","v":0},{"$f":"MIN(H13,ROUNDDOWN(0.12*(H7+H10),2))","v":0}]
[580,"Bemessungsgrundlage",null,null,{"$f":"E7+E10+E19","v":0},{"$f":"F7+F10+F19","v":0},{"$f":"G7+G10+G19","v":0},{"$f":"H7+H10+H19","v":0}]
[590,"5.","Zuwendungsbetrag bei 20 % Zuschuss",null,{"$f":"IF(H17>=I23,ROUNDDOWN(MIN(E20*20%,100000),2),0)","v":0},{"$f":"IF(H17>=I23,IF(E21>=0,ROUNDDOWN(MIN(F20*20%,100000-E21),2)),0)","v":0},{"$f":"IF(H17>I23,IF(E21>=0,ROUNDDOWN(MIN(G20*20%,100000-E21-F21),2)),0)","v":0},{"$f":"IF(ISNUMBER(E21+F21+G21),E21+F21+G21,0)","v":0},"max.= 100.000 €"]
[]
[null,null,null,null,null,null,null,null,{"$f":"IF(KUP!I18>0, 7000,10000)","v":10000}]
["Hinweise"]
["2.3.2","Ausgaben für GAK-Maßnahmen"]
[null,"- Errichtung, Erwerb oder Modernisierung von unbeweglichem Vermögen;"]
[null,"- Erstanschaffung von neuen Maschinen und Anlagen, einschließlich Computersoftware bis zum marktüblichen Wert des\n   Wirtschaftsgutes;"]
[null,"- allgemeine Aufwendungen, etwa für Architektur- und Ingenieurleistungen sowie für Beratung, Betreuung von baulichen\n   Investitionen, Durchführbarkeitsstudien, den Erwerb von Patentrechten und Lizenzen, bis zu einem Höchstsatz von\n   insgesamt 12 % der in Punkten 1 und 2 genannten förderfähigen Ausgaben, d.h. ohne Selbstbezug auf diese Position."]

{"sheet":"AusgOrgaBerat","index":12,"n_rows":31,"n_cols":7,"rows_kept":31,"cut":false,"hidden":false,"merged":[[1,0,3,0],[1,2,2,5],[1,1,3,1],[1,6,3,6]]}
["2.1  Kostenaufstellung Organisationsausgaben - Beratung (ohne USt.)",null,null,null,null,"Unternehmer-Nr.",{"$f":"'Ant1'!G12","v":0}]
["Kostengliederung Beratung","USt.-Satz","Ausgaben in Euro",null,null,null,"von Kreisstelle geprüft"]
[]
[null,null,"1. Förderjahr","2. Förderjahr","3. Förderjahr","gesamt"]
[null,{"$f":"IF(A5>\"\",0.19,\"\")","v":""},null,null,null,{"$f":"IF(SUM(C5:E5)>0,SUM(C5:E5),\"\")","v":""}]
[null,{"$f":"IF(A6>\"\",0.19,\"\")","v":""},null,null,null,{"$f":"IF(SUM(C6:E6)>0,SUM(C6:E6),\"\")","v":""}]
[null,"",null,null,null,""]
[null,"",null,null,null,""]
[null,"",null,null,null,""]
[null,"",null,null,null,""]
[null,"",null,null,null,""]
[null,"",null,null,null,""]
[null,"",null,null,null,""]
[null,"",null,null,null,""]
[null,"",null,null,null,""]
[null,"",null,null,null,""]
[null,"",null,null,null,""]
[null,"",null,null,null,""]
[null,"",null,null,null,""]
[null,"",null,null,null,""]
[null,"",null,null,null,""]
[null,"",null,null,null,""]
[null,"",null,null,null,""]
[null,"",null,null,null,""]
[null,"",null,null,null,""]
[null,"",null,null,null,""]
[null,"",null,null,null,""]
[null,"",null,null,null,""]
["Summe netto",null,{"$f":"SUM(C5:C28)","v":0},{"$f":"SUM(D5:D28)","v":0},{"$f":"SUM(E5:E28)","v":0},{"$f":"SUM(F5:F28)","v":0}]
["Summe USt.",null,{"$f":"ROUND((SUMPRODUCT(B5:B28,C5:C28)),2)","v":0},{"$f":"ROUND((SUMPRODUCT(B5:B28,D5:D28)),2)","v":0},{"$f":"ROUND((SUMPRODUCT(B5:B28,E5:E28)),2)","v":0},{"$f":"SUM(C30:E30)","v":0}]
["Summe brutto",null,{"$f":"C29+C30","v":0},{"$f":"D29+D30","v":0},{"$f":"E29+E30","v":0},{"$f":"SUM(C31:E31)","v":0}]

{"sheet":"AusgOrgaKonzep","index":13,"n_rows":31,"n_cols":7,"rows_kept":31,"cut":false,"hidden":false,"merged":[[1,0,3,0],[1,2,2,5],[1,1,3,1],[1,6,3,6]]}
["2.1  Kostenaufstellung Organisationsausgaben - Konzeption (ohne USt.)",null,null,null,null,"Unternehmer-Nr.",{"$f":"'Ant1'!G12","v":0}]
["Kostengliederung Konzeption","USt.-Satz","Ausgaben in Euro",null,null,null,"von Kreisstelle geprüft"]
[]
[null,null,"1. Förderjahr","2. Förderjahr","3. Förderjahr","gesamt"]
[null,{"$f":"IF(A5>\"\",0.19,\"\")","v":""},null,null,null,{"$f":"IF(SUM(C5:E5)>0,SUM(C5:E5),\"\")","v":""}]
[null,{"$f":"IF(A6>\"\",0.19,\"\")","v":""},null,null,null,{"$f":"IF(SUM(C6:E6)>0,SUM(C6:E6),\"\")","v":""}]
[null,"",null,null,null,""]
[null,"",null,null,null,""]
[null,"",null,null,null,""]
[null,"",null,null,null,""]
[null,"",null,null,null,""]
[null,"",null,null,null,""]
[null,"",null,null,null,""]
[null,"",null,null,null,""]
[null,"",null,null,null,""]
[null,"",null,null,null,""]
[null,"",null,null,null,""]
[null,"",null,null,null,""]
[null,"",null,null,null,""]
[null,"",null,null,null,""]
[null,"",null,null,null,""]
[null,"",null,null,null,""]
[null,"",null,null,null,""]
[null,"",null,null,null,""]
[]
[null,"",null,null,null,""]
[null,"",null,null,null,""]
[null,"",null,null,null,""]
["Summe netto",null,{"$f":"SUM(C5:C28)","v":0},{"$f":"SUM(D5:D28)","v":0},{"$f":"SUM(E5:E28)","v":0},{"$f":"SUM(F5:F28)","v":0}]
["Summe USt.",null,{"$f":"ROUND((SUMPRODUCT(B5:B29,C5:C29)),2)","v":0},{"$f":"ROUND((SUMPRODUCT(B5:B29,D5:D29)),2)","v":0},{"$f":"ROUND((SUMPRODUCT(B5:B29,E5:E29)),2)","v":0},{"$f":"SUM(C30:E30)","v":0}]
["Summe brutto",null,{"$f":"C29+C30","v":0},{"$f":"D29+D30","v":0},{"$f":"E29+E30","v":0},{"$f":"SUM(C31:E31)","v":0}]

{"sheet":"AusgOrgaGeschäft","index":14,"n_rows":31,"n_cols":7,"rows_kept":31,"cut":false,"hidden":false,"merged":[[1,0,3,0],[1,2,2,5],[1,1,3,1],[1,6,3,6]]}
["2.1  Kostenaufstellung Organisationsausgaben - Geschäftsausgaben (ohne USt.)",null,null,null,null,"Unternehmer-Nr.",{"$f":"'Ant1'!G12","v":0}]
["Kostengliederung Geschäftsausgaben","USt.-Satz","Ausgaben in Euro",null,null,null,"von Kreisstelle geprüft"]
[]
[null,null,"1. Förderjahr","2. Förderjahr","3. Förderjahr","gesamt"]
[null,{"$f":"IF(A5>\"\",0.19,\"\")","v":""},null,null,null,{"$f":"IF(SUM(C5:E5)>0,SUM(C5:E5),\"\")","v":""}]
[null,{"$f":"IF(A6>\"\",0.19,\"\")","v":""},null,null,null,{"$f":"IF(SUM(C6:E6)>0,SUM(C6:E6),\"\")","v":""}]
[null,{"$f":"IF(A7>\"\",0.19,\"\")","v":""},null,null,null,{"$f":"IF(SUM(C7:E7)>0,SUM(C7:E7),\"\")","v":""}]
[null,"",null,null,null,""]
[null,"",null,null,null,""]
[null,"",null,null,null,""]
[null,"",null,null,null,""]
[null,"",null,null,null,""]
[null,"",null,null,null,""]
[null,"",null,null,null,""]
[null,"",null,null,null,""]
[null,"",null,null,null,""]
[null,"",null,null,null,""]
[null,"",null,null,null,""]
[null,"",null,null,null,""]
[null,"",null,null,null,""]
[null,"",null,null,null,""]
[null,"",null,null,null,""]
[null,"",null,null,null,""]
[null,"",null,null,null,""]
[null,"",null,null,null,""]
[null,"",null,null,null,""]
[null,"",null,null,null,""]
[null,"",null,null,null,""]
["Summe netto",null,{"$f":"SUM(C5:C28)","v":0},{"$f":"SUM(D5:D28)","v":0},{"$f":"SUM(E5:E28)","v":0},{"$f":"SUM(F5:F28)","v":0}]
["Summe USt.",null,{"$f":"ROUND((SUMPRODUCT(B5:B28,C5:C28)),2)","v":0},{"$f":"ROUND((SUMPRODUCT(B5:B28,D5:D28)),2)","v":0},{"$f":"ROUND((SUMPRODUCT(B5:B28,E5:E28)),2)","v":0},{"$f":"SUM(C30:E30)","v":0}]
["Summe brutto",null,{"$f":"C29+C30","v":0},{"$f":"D29+D30","v":0},{"$f":"E29+E30","v":0},{"$f":"SUM(C31:E31)","v":0}]

{"sheet":"AusgStartbeih","index":15,"n_rows":31,"n_cols":7,"rows_kept":31,"cut":false,"hidden":false,"merged":[[1,0,3,0],[1,2,2,5],[1,1,3,1],[1,6,3,6]]}
["2.2 Startbeihilfen (ohne USt.)",null,null,null,null,"Unternehmer-Nr.",{"$f":"'Ant1'!G12","v":0}]
["Kostengliederung Startbeihilfen\nStaffelung nach Jahren erforderlich","USt.-Satz","Ausgaben in Euro",null,null,null,"von Kreisstelle geprüft"]
[]
[null,null,"1. Förderjahr","2. Förderjahr","3. Förderjahr","gesamt"]
[null,null,null,null,null,{"$f":"IF(SUM(C5:E5)>0,SUM(C5:E5),\"\")","v":""}]
[null,null,null,null,null,{"$f":"IF(SUM(C6:E6)>0,SUM(C6:E6),\"\")","v":""}]
[null,null,null,null,null,""]
[null,null,null,null,null,""]
[null,null,null,null,null,""]
[null,null,null,null,null,""]
[null,null,null,null,null,""]
[null,null,null,null,null,""]
[null,null,null,null,null,""]
[null,null,null,null,null,""]
[null,null,null,null,null,""]
[null,null,null,null,null,""]
[null,null,null,null,null,""]
[null,null,null,null,null,""]
[null,null,null,null,null,""]
[null,null,null,null,null,""]
[null,null,null,null,null,""]
[null,null,null,null,null,""]
[null,null,null,null,null,""]
[null,null,null,null,null,""]
[null,null,null,null,null,""]
[null,null,null,null,null,""]
[null,null,null,null,null,""]
[null,null,null,null,null,""]
["Summe netto",null,{"$f":"SUM(C5:C28)","v":0},{"$f":"SUM(D5:D28)","v":0},{"$f":"SUM(E5:E28)","v":0},{"$f":"SUM(F5:F28)","v":0}]
["Summe USt.",null,{"$f":"ROUND((SUMPRODUCT(B5:B28,C5:C28)),2)","v":0},{"$f":"ROUND((SUMPRODUCT(B5:B28,D5:D28)),2)","v":0},{"$f":"ROUND((SUMPRODUCT(B5:B28,E5:E28)),2)","v":0},{"$f":"SUM(C30:E30)","v":0}]
["Summe brutto",null,{"$f":"C29+C30","v":0},{"$f":"D29+D30","v":0},{"$f":"E29+E30","v":0},{"$f":"SUM(C31:E31)","v":0}]

{"sheet":"AusgStratEuA","index":16,"n_rows":32,"n_cols":8,"rows_kept":32,"cut":false,"hidden":false,"merged":[[1,0,3,0],[1,2,3,2],[1,3,2,6],[1,7,3,7],[1,1,3,1]]}
["2.3.1  Kostenaufstellung Strategiekonzept - Einrichtung / Ausstattung (ohne USt.)",null,null,null,null,null,"Unternehmer-Nr.",{"$f":"'Ant1'!G12","v":0}]
["Kostengliederung Einrichtung / Ausstattung","USt.-Satz","Kostenvor-\nanschlag\nNr.1)","Ausgaben in Euro",null,null,null,"von Kreisstelle geprüft"]
[]
[null,null,null,"1. Förderjahr","2. Förderjahr","3. Förderjahr","gesamt"]
[null,{"$f":"IF(A5>\"\",0.19,\"\")","v":""},null,null,null,null,{"$f":"IF(SUM(D5:F5)>0,SUM(D5:F5),\"\")","v":""}]
[null,{"$f":"IF(A6>\"\",0.19,\"\")","v":""},null,null,null,null,{"$f":"IF(SUM(D6:F6)>0,SUM(D6:F6),\"\")","v":""}]
[null,"",null,null,null,null,""]
[null,"",null,null,null,null,""]
[null,"",null,null,null,null,""]
[null,"",null,null,null,null,""]
[null,"",null,null,null,null,""]
[null,"",null,null,null,null,""]
[null,"",null,null,null,null,""]
[null,"",null,null,null,null,""]
[null,"",null,null,null,null,""]
[null,"",null,null,null,null,""]
[null,"",null,null,null,null,""]
[null,"",null,null,null,null,""]
[null,"",null,null,null,null,""]
[null,"",null,null,null,null,""]
[null,"",null,null,null,null,""]
[null,"",null,null,null,null,""]
[null,"",null,null,null,null,""]
[null,"",null,null,null,null,""]
[null,"",null,null,null,null,{"$f":"IF(SUM(D25:F25)>0,SUM(D25:F25),\"\")","v":""}]
[null,"",null,null,null,null,""]
[null,"",null,null,null,null,""]
[null,"",null,null,null,null,""]
["Summe netto",null,null,{"$f":"SUM(D5:D28)","v":0},{"$f":"SUM(E5:E28)","v":0},{"$f":"SUM(F5:F28)","v":0},{"$f":"SUM(G5:G28)","v":0}]
["Summe USt.",null,null,{"$f":"ROUND((SUMPRODUCT(B5:B28,D5:D28)),2)","v":0},{"$f":"ROUND((SUMPRODUCT(B5:B28,E5:E28)),2)","v":0},{"$f":"ROUND((SUMPRODUCT(B5:B28,F5:F28)),2)","v":0},{"$f":"SUM(D30:F30)","v":0}]
["Summe brutto",null,null,{"$f":"D29+D30","v":0},{"$f":"E29+E30","v":0},{"$f":"F29+F30","v":0},{"$f":"SUM(D31:F31)","v":0}]
["1) für Einzelkosten > 5.000 € netto. Ggf. Position aus Kostenvoranschlag angeben."]

{"sheet":"AusgStratSach","index":17,"n_rows":32,"n_cols":8,"rows_kept":32,"cut":false,"hidden":false,"merged":[[1,0,3,0],[1,2,3,2],[1,3,2,6],[1,7,3,7],[1,1,3,1]]}
["2.3.1  Kostenaufstellung Strategiekonzept - Sonstige Sachkosten / Marketing (ohne USt.)",null,null,null,null,null,"Unternehmer-Nr.",{"$f":"'Ant1'!G12","v":0}]
["Kostengliederung Sonstige Sachkosten / Marketing","USt.-Satz","Kostenvor-\nanschlag\nNr.1)","Ausgaben in Euro",null,null,null,"von Kreisstelle geprüft"]
[]
[null,null,null,"1. Förderjahr","2. Förderjahr","3. Förderjahr","gesamt"]
[null,{"$f":"IF(A5>\"\",0.19,\"\")","v":""},null,null,null,null,{"$f":"IF(SUM(D5:F5)>0,SUM(D5:F5),\"\")","v":""}]
[null,{"$f":"IF(A6>\"\",0.19,\"\")","v":""},null,null,null,null,{"$f":"IF(SUM(D6:F6)>0,SUM(D6:F6),\"\")","v":""}]
[null,"",null,null,null,null,""]
[null,"",null,null,null,null,""]
[null,"",null,null,null,null,""]
[null,"",null,null,null,null,""]
[null,"",null,null,null,null,""]
[null,"",null,null,null,null,""]
[null,"",null,null,null,null,""]
[null,"",null,null,null,null,""]
[null,"",null,null,null,null,""]
[null,"",null,null,null,null,""]
[null,"",null,null,null,null,""]
[null,"",null,null,null,null,""]
[null,"",null,null,null,null,""]
[null,"",null,null,null,null,""]
[null,"",null,null,null,null,""]
[null,"",null,null,null,null,""]
[null,"",null,null,null,null,""]
[null,"",null,null,null,null,""]
[null,"",null,null,null,null,""]
[null,"",null,null,null,null,""]
[null,"",null,null,null,null,""]
[null,"",null,null,null,null,""]
["Summe netto",null,null,{"$f":"SUM(D5:D28)","v":0},{"$f":"SUM(E5:E28)","v":0},{"$f":"SUM(F5:F28)","v":0},{"$f":"SUM(G5:G28)","v":0}]
["Summe USt.",null,null,{"$f":"ROUND((SUMPRODUCT(B5:B28,D5:D28)),2)","v":0},{"$f":"ROUND((SUMPRODUCT(B5:B28,E5:E28)),2)","v":0},{"$f":"ROUND((SUMPRODUCT(B5:B28,F5:F28)),2)","v":0},{"$f":"SUM(D30:F30)","v":0}]
["Summe brutto",null,null,{"$f":"D29+D30","v":0},{"$f":"E29+E30","v":0},{"$f":"F29+F30","v":0},{"$f":"SUM(D31:F31)","v":0}]
["1) für Einzelkosten > 5.000 € netto. Ggf. Position aus Kostenvoranschlag angeben."]

{"sheet":"AusgGAKImmo","index":18,"n_rows":33,"n_cols":8,"rows_kept":33,"cut":false,"hidden":false,"merged":[[1,0,3,0],[1,2,3,2],[1,3,2,6],[1,7,3,7],[1,1,3,1]]}
["2.3.2  Kostenaufstellung für GAK-Maßnahmen2) - Errichtung, Modernisierung von Immobilien (ohne USt.)",null,null,null,null,null,"Unternehmer-Nr.",{"$f":"'Ant1'!G12","v":0}]
["Kostengliederung Errichtung, Modernisierung von Immobilien","USt.-Satz","Kostenvor-\nanschlag\nNr.1)","Ausgaben in Euro",null,null,null,"von Kreisstelle geprüft"]
[]
[null,null,null,"1. Förderjahr","2. Förderjahr","3. Förderjahr","gesamt"]
[null,{"$f":"IF(A5>\"\",0.19,\"\")","v":""},null,null,null,null,{"$f":"IF(SUM(D5:F5)>0,SUM(D5:F5),\"\")","v":""}]
[null,"",null,null,null,null,{"$f":"IF(SUM(D6:F6)>0,SUM(D6:F6),\"\")","v":""}]
[null,"",null,null,null,null,{"$f":"IF(SUM(D7:F7)>0,SUM(D7:F7),\"\")","v":""}]
[null,"",null,null,null,null,""]
[null,"",null,null,null,null,""]
[null,"",null,null,null,null,""]
[null,"",null,null,null,null,""]
[null,"",null,null,null,null,""]
[null,"",null,null,null,null,""]
[null,"",null,null,null,null,""]
[null,"",null,null,null,null,""]
[null,"",null,null,null,null,""]
[null,"",null,null,null,null,""]
[null,"",null,null,null,null,""]
[null,"",null,null,null,null,""]
[null,"",null,null,null,null,""]
[null,"",null,null,null,null,""]
[null,"",null,null,null,null,""]
[null,"",null,null,null,null,""]
[null,"",null,null,null,null,""]
[null,"",null,null,null,null,""]
[null,"",null,null,null,null,""]
[null,"",null,null,null,null,""]
[null,"",null,null,null,null,""]
["Summe netto",null,null,{"$f":"SUM(D5:D28)","v":0},{"$f":"SUM(E5:E28)","v":0},{"$f":"SUM(F5:F28)","v":0},{"$f":"SUM(G5:G28)","v":0}]
["Summe USt.",null,null,{"$f":"ROUND((SUMPRODUCT(B5:B28,D5:D28)),2)","v":0},{"$f":"ROUND((SUMPRODUCT(B5:B28,E5:E28)),2)","v":0},{"$f":"ROUND((SUMPRODUCT(B5:B28,F5:F28)),2)","v":0},{"$f":"SUM(D30:F30)","v":0}]
["Summe brutto",null,null,{"$f":"D29+D30","v":0},{"$f":"E29+E30","v":0},{"$f":"F29+F30","v":0},{"$f":"SUM(D31:F31)","v":0}]
["1) für Einzelkosten > 5.000 € netto. Ggf. Position aus Kostenvoranschlag angeben."]
["2) Hinweise siehe Anh3"]

{"sheet":"AusgGAKMasch","index":19,"n_rows":33,"n_cols":8,"rows_kept":33,"cut":false,"hidden":false,"merged":[[1,0,3,0],[1,2,3,2],[1,3,2,6],[1,7,3,7],[1,1,3,1]]}
["2.3.2  Kostenaufstellung für GAK-Maßnahmen2) - Kauf neuer Maschinen und Anlagen (ohne USt.)",null,null,null,null,null,"Unternehmer-Nr.",{"$f":"'Ant1'!G12","v":0}]
["Kostengliederung Kauf neuer Maschinen und Anlagen","USt.-Satz","Kostenvor-\nanschlag\nNr.1)","Ausgaben in Euro",null,null,null,"von Kreisstelle geprüft"]
[]
[null,null,null,"1. Förderjahr","2. Förderjahr","3. Förderjahr","gesamt"]
[null,{"$f":"IF(A5>\"\",0.19,\"\")","v":""},null,null,null,null,{"$f":"IF(SUM(D5:F5)>0,SUM(D5:F5),\"\")","v":""}]
[null,"",null,null,null,null,{"$f":"IF(SUM(D6:F6)>0,SUM(D6:F6),\"\")","v":""}]
[null,"",null,null,null,null,""]
[null,"",null,null,null,null,""]
[null,"",null,null,null,null,""]
[null,"",null,null,null,null,""]
[null,"",null,null,null,null,""]
[null,"",null,null,null,null,""]
[null,"",null,null,null,null,""]
[null,"",null,null,null,null,""]
[null,"",null,null,null,null,""]
[null,"",null,null,null,null,""]
[null,"",null,null,null,null,""]
[null,"",null,null,null,null,""]
[null,"",null,null,null,null,""]
[null,"",null,null,null,null,""]
[null,"",null,null,null,null,""]
[null,"",null,null,null,null,""]
[null,"",null,null,null,null,""]
[null,"",null,null,null,null,""]
[null,"",null,null,null,null,""]
[null,"",null,null,null,null,""]
[null,"",null,null,null,null,""]
[null,"",null,null,null,null,""]
["Summe netto",null,null,{"$f":"SUM(D5:D28)","v":0},{"$f":"SUM(E5:E28)","v":0},{"$f":"SUM(F5:F28)","v":0},{"$f":"SUM(G5:G28)","v":0}]
["Summe USt.",null,null,{"$f":"ROUND((SUMPRODUCT(B5:B28,D5:D28)),2)","v":0},{"$f":"ROUND((SUMPRODUCT(B5:B28,E5:E28)),2)","v":0},{"$f":"ROUND((SUMPRODUCT(B5:B28,F5:F28)),2)","v":0},{"$f":"SUM(D30:F30)","v":0}]
["Summe brutto",null,null,{"$f":"D29+D30","v":0},{"$f":"E29+E30","v":0},{"$f":"F29+F30","v":0},{"$f":"SUM(D31:F31)","v":0}]
["1) für Einzelkosten > 5.000 € netto. Ggf. Position aus Kostenvoranschlag angeben."]
["2) Hinweise siehe Anh3"]

{"sheet":"AusgGAKallg.Auf","index":20,"n_rows":33,"n_cols":8,"rows_kept":33,"cut":false,"hidden":false,"merged":[[1,0,3,0],[1,2,3,2],[1,3,2,6],[1,7,3,7],[1,1,3,1]]}
["2.3.2  Kostenaufstellung für GAK-Maßnahmen2) - Allgemeine Aufwendungen (ohne USt.)",null,null,null,null,null,"Unternehmer-Nr.",{"$f":"'Ant1'!G12","v":0}]
["Kostengliederung Allgemeine Aufwendungen\nwie Architekten, Ingenieur-Leistung, Beratung","USt.-Satz","Kostenvor-\nanschlag\nNr.1)","Ausgaben in Euro",null,null,null,"von Kreisstelle geprüft"]
[]
[null,null,null,"1. Förderjahr","2. Förderjahr","3. Förderjahr","gesamt"]
[null,{"$f":"IF(A5>\"\",0.19,\"\")","v":""},null,null,null,null,{"$f":"IF(SUM(D5:F5)>0,SUM(D5:F5),\"\")","v":""}]
[null,"",null,null,null,null,{"$f":"IF(SUM(D6:F6)>0,SUM(D6:F6),\"\")","v":""}]
[null,"",null,null,null,null,{"$f":"IF(SUM(D7:F7)>0,SUM(D7:F7),\"\")","v":""}]
[null,"",null,null,null,null,""]
[null,"",null,null,null,null,""]
[null,"",null,null,null,null,""]
[null,"",null,null,null,null,""]
[null,"",null,null,null,null,""]
[null,"",null,null,null,null,""]
[null,"",null,null,null,null,""]
[null,"",null,null,null,null,""]
[null,"",null,null,null,null,""]
[null,"",null,null,null,null,""]
[null,"",null,null,null,null,""]
[null,"",null,null,null,null,""]
[null,"",null,null,null,null,""]
[null,"",null,null,null,null,""]
[null,"",null,null,null,null,""]
[null,"",null,null,null,null,""]
[null,"",null,null,null,null,""]
[null,"",null,null,null,null,""]
[null,"",null,null,null,null,""]
[null,"",null,null,null,null,""]
[null,"",null,null,null,null,""]
["Summe netto",null,null,{"$f":"SUM(D5:D28)","v":0},{"$f":"SUM(E5:E28)","v":0},{"$f":"SUM(F5:F28)","v":0},{"$f":"SUM(G5:G28)","v":0}]
["Summe USt.",null,null,{"$f":"ROUND((SUMPRODUCT(B5:B28,D5:D28)),2)","v":0},{"$f":"ROUND((SUMPRODUCT(B5:B28,E5:E28)),2)","v":0},{"$f":"ROUND((SUMPRODUCT(B5:B28,F5:F28)),2)","v":0},{"$f":"SUM(D30:F30)","v":0}]
["Summe brutto",null,null,{"$f":"D29+D30","v":0},{"$f":"E29+E30","v":0},{"$f":"F29+F30","v":0},{"$f":"SUM(D31:F31)","v":0}]
["1) für Einzelkosten > 5.000 € netto. Ggf. Position aus Kostenvoranschlag angeben."]
["2) Hinweise siehe Anh3"]

{"sheet":"AusgQuali","index":21,"n_rows":33,"n_cols":7,"rows_kept":33,"cut":false,"hidden":false,"merged":[[1,6,3,6],[31,0,31,5],[32,0,32,4],[1,0,3,0],[1,1,3,1],[1,2,2,5]]}
["2.4  Kostenaufstellung Qualifizierungsmaßnahmen (ohne USt.)",null,null,null,null,"Unternehmer-Nr.",{"$f":"'Ant1'!G12","v":0}]
["Kostengliederung Qualifizierungsmaßnahmen 3) 4)","USt.-Satz","Ausgaben in Euro",null,null,null,"von Kreisstelle geprüft"]
[]
[null,null,"1. Förderjahr","2. Förderjahr","3. Förderjahr","gesamt"]
[null,{"$f":"IF(A5>\"\",0.19,\"\")","v":""},null,null,null,{"$f":"IF(SUM(C5:E5)>0,SUM(C5:E5),\"\")","v":""}]
[null,{"$f":"IF(A6>\"\",0.19,\"\")","v":""},null,null,null,{"$f":"IF(SUM(C6:E6)>0,SUM(C6:E6),\"\")","v":""}]
[null,"",null,null,null,""]
[null,"",null,null,null,""]
[null,"",null,null,null,""]
[null,"",null,null,null,""]
[null,"",null,null,null,""]
[null,"",null,null,null,""]
[null,"",null,null,null,""]
[null,"",null,null,null,""]
[null,"",null,null,null,""]
[null,"",null,null,null,""]
[null,"",null,null,null,""]
[null,""]
[null,"",null,null,null,""]
[null,"",null,null,null,""]
[null,"",null,null,null,""]
[null,"",null,null,null,""]
[null,"",null,null,null,""]
[null,"",null,null,null,""]
[null,"",null,null,null,""]
[null,"",null,null,null,""]
[null,"",null,null,null,""]
[null,"",null,null,null,""]
["Summe netto",null,{"$f":"SUM(C5:C28)","v":0},{"$f":"SUM(D5:D28)","v":0},{"$f":"SUM(E5:E28)","v":0},{"$f":"SUM(F5:F28)","v":0}]
["Summe USt.",null,{"$f":"ROUND((SUMPRODUCT(B5:B28,C5:C28)),2)","v":0},{"$f":"ROUND((SUMPRODUCT(B5:B28,D5:D28)),2)","v":0},{"$f":"ROUND((SUMPRODUCT(B5:B28,E5:E28)),2)","v":0},{"$f":"SUM(C30:E30)","v":0}]
["Summe brutto",null,{"$f":"C29+C30","v":0},{"$f":"D29+D30","v":0},{"$f":"E29+E30","v":0},{"$f":"SUM(C31:E31)","v":0}]
["3) Betrag inkl. zuzurechnender, ebenfalls förderfähiger Kosten wie Fahrtkosten, Übernachtung, Lernmittel"]
["4) Themen angeben z.B. Lebensmittelhygiene, Marketing, Steuern u. Recht"]

{"sheet":"Betriebsspiegel","index":22,"n_rows":44,"n_cols":12,"rows_kept":44,"cut":false,"hidden":false,"merged":[[1,2,1,5],[14,0,14,3],[2,2,2,5],[40,0,42,8],[11,5,11,8],[22,1,22,3],[43,0,45,8],[26,5,26,6],[27,0,28,0],[27,1,27,3],[26,0,26,3]]}
["Betriebsspiegel für den landwirtschaftlichen Betrieb"]
[null,"Name:"]
[null,"Unt.-Nummer "]
[]
[null,null,null,"Ist-Jahr:"]
[]
[]
[null,null,null,"Rechtsform",null,null,null,null,null,null,true,true]
[null,null,null,null,null,null,null,null,null,null,false,false]
[null,null,null,null,null,null,null,null,null,null,null,false]
[null,null,null,null,null,null,null,null,null,null,true,false]
[null,null,null,null,null,null,null,null,null,null,false,false]
[]
[]
["Sonstige Zweige (Handel/Dienstleistung/Gewerbe)",null,null,null,null,"Arbeitskräfte",null,"Alter ","AK"]
[null,null,null,null,null,"BetriebsleiterIn",null,null,null,null,false]
[null,"Direktvermarktung",null,null,null,"Ehegatte",null,null,null,null,false]
[null,"Urlaub auf dem Bauernhof",null,null,null,"Hofnachfolger/in",null,null,null,null,false]
[null,"Gastronomie",null,null,null,"sonst. Fam.AK 1",null,null,null,null,false]
[null,"Pensionspferde",null,null,null,"sonst. Fam.AK 2",null,null,null,null,false]
[null,"Dienstleistungen",null,null,null,"sonst. Fam.AK 3",null,null,null,null,true]
[null,null,null,null,null,"ständige Fremd-AK"]
[null,"keine",null,null,null,"nichtständige Fremd-AK"]
[null,null,null,null,null,"AK gesamt",null,null,{"$f":"SUM(I16:I23)","v":0}]
[]
[]
["Bewirtschaftete Fläche in ha",null,null,null,null,"Tierproduktion ",null,"Anzahl"]
["gesamt","davon",null,null,null,"Kühe"]
[null,"Eigentum","Zupacht","Verpacht",null,"Sauen"]
[{"$f":"B30+C30-D30","v":0},null,null,null,null,"Mastschweine"]
[null,null,null,null,null,"Mastrinder"]
[null,null,null,null,null,"Pferde"]
[null,null,null,null,null,"Mutterschafe"]
[null,null,null,null,null,"Legehennen "]
[null,null,null,null,null,"Mastgeflügel"]
[]
[]
[]
[]
["Sonstige Hinweise (Kooperationen, E&E als Gewerbe/ lw. Nebenbetrieb, etc.):"]
[""]
[]
[]
[""]

{"sheet":"Uebertragung","index":23,"n_rows":289,"n_cols":8,"rows_kept":289,"cut":false,"hidden":true,"merged":[[51,4,51,5]]}
["Blatt","Zelle","Text",null,"Inhalt"]
["Ant1","D10","Dienststelle",null,{"$f":"'Ant1'!C11","v":"50765 Köln-Auweiler, Gartenstraße 11"}]
[null,"G12","AdrNummer",null,{"$f":"'Ant1'!G12","v":0}]
[null,"B14","Name",null,{"$f":"'Ant1'!B14","v":""}]
[null,"D14","Vorname",null,{"$f":"'Ant1'!D14","v":""}]
[null,"F14","Bevollmächtigter (Anrede, Vorname, Name)",null,{"$f":"'Ant1'!F14","v":""}]
[null,"B16","Anschrift",null,{"$f":"'Ant1'!B16","v":0}]
[null,"F16","Betriebsstättennummer",null,{"$f":"'Ant1'!F16","v":0}]
[null,"B18","PLZ",null,{"$f":"'Ant1'!B18","v":0}]
[null,"D18","Wohnort",null,{"$f":"'Ant1'!D18","v":""}]
[null,"B20","Telefon",null,{"$f":"'Ant1'!B20","v":""}]
[null,"D20","Telefax",null,{"$f":"'Ant1'!D20","v":""}]
[null,"F20","e-mail-adr",null,{"$f":"'Ant1'!F20","v":0}]
[null,"B26","Anschrift Unternehmenssitz",null,{"$f":"'Ant1'!B16","v":0}]
[null,"E26","PLZ Unternehmenssitz",null,{"$f":"'Ant1'!B18","v":0}]
[null,"F26","Ort Unternehmenssitz",null,{"$f":"'Ant1'!D18","v":""}]
[null,"B30","Mithilfename",null,{"$f":"'Ant1'!B28","v":0}]
[null,"D30","Organisation Mithilfe",null,{"$f":"'Ant1'!D28","v":0}]
[null,"F30","Tel Mithilfe",null,{"$f":"'Ant1'!F28","v":0}]
[null,"B32","e-mail Mithilfe",null,{"$f":"'Ant1'!B30","v":0}]
[null,"I18","unter 25",null,{"$f":"'Ant1'!I18","v":false}]
[null,"I19","25 und älter",null,{"$f":"'Ant1'!I19","v":true}]
[null,"I20","männlich",null,{"$f":"'Ant1'!I20","v":true}]
[null,"I21","weiblich",null,{"$f":"'Ant1'!I23","v":false}]
[null,"I22","Natürliche Person",null,{"$f":"'Ant1'!I24","v":false}]
[null,"I23","Juristische Person",null,{"$f":"'Ant1'!I25","v":false}]
[]
["Ant2","C1","1.2.1 Alleinuntern",null,{"$f":"'Ant2'!C1","v":false}]
[null,"D1","1.2.2 MiFa",null,{"$f":"'Ant2'!D1","v":false}]
[null,"E1","1.2.3 Koop Gewerbe",null,{"$f":"'Ant2'!E1","v":true}]
[null,"F1","1.2.4 Koop 3 Beteil",null,{"$f":"'Ant2'!F1","v":false}]
[null,"G1","1.2.5 Koop Nebenbetr",null,{"$f":"'Ant2'!G1","v":false}]
[null,"H1","1.2.6 wesentl Landw Tätigkeit",null,{"$f":"'Ant2'!H1","v":false}]
[null,"I1","1.2.7 Kirche, gemeinnütz.",null,{"$f":"'Ant2'!I1","v":false}]
[null,"J1","1.2.8 Mitarbeiter",null,{"$f":"'Ant2'!J1","v":false}]
[null,"A13","ö.Kapital unter 25%",null,{"$f":"'Ant2'!A14","v":true}]
[null,"A14","ö.Kapital über 25%",null,{"$f":"'Ant2'!A15","v":false}]
[null,"D20","Est Jahr",null,{"$f":"'Ant2'!D21","v":0}]
[null,"E20","Est Summe",null,{"$f":"'Ant2'!E21","v":0}]
[null,"E27","ESt1",null,{"$f":"'Ant2'!E28","v":""}]
[null,"F27","ESt2",null,{"$f":"'Ant2'!F28","v":""}]
[null,"G27","ESt3",null,{"$f":"'Ant2'!G28","v":""}]
[null,"H27","ESt4",null,{"$f":"'Ant2'!H28","v":""}]
[null,"E28","Kapitalanteil 1",null,{"$f":"'Ant2'!E29","v":0}]
[null,"F28","Kapitalanteil 2",null,{"$f":"'Ant2'!F29","v":0}]
[null,"G28","Kapitalanteil 3",null,{"$f":"'Ant2'!G29","v":0}]
[null,"H28","Kapitalanteil 4",null,{"$f":"'Ant2'!H29","v":0}]
[null,"A16","Veranlagung zur Est",null,{"$f":"'Ant2'!A17","v":false}]
[null,"C7","Inhaber des lw. Untern",null,{"$f":"'Ant2'!C7","v":0}]
[null,"G7","Untern-Nr des lw. Unt.",null,{"$f":"'Ant2'!G7","v":0}]
[]
["Ant3","B6","Kurzbezeichnung",null,{"$f":"'Ant3'!B6","v":0}]
[null,"J7","touristisch",null,{"$f":"'Ant3'!J7","v":true}]
[null,"J8","Urlaub adB",null,{"$f":"'Ant3'!J8","v":false}]
[null,"J9","Handwerk",null,{"$f":"'Ant3'!J9","v":false}]
[null,"J10","Einzelhandel",null,{"$f":"'Ant3'!J10","v":false}]
[null,"J11","Dienstleist.",null,{"$f":"'Ant3'!J11","v":false}]
[null,"J12","Pensionstiere",null,{"$f":"'Ant3'!J12","v":false}]
[null,"J13","Sonstige Aktivities",null,{"$f":"'Ant3'!J13","v":false}]
[null,"F13","Beginn",null,{"$f":"'Ant3'!F13","v":"00:00:00"}]
[null,"H13","Ende",null,{"$f":"'Ant3'!H13","v":"00:00:00"}]
[null,"A28","organ 2.1",null,{"$f":"'Ant3'!A28","v":true}]
[null,"A29","startb 2.2",null,{"$f":"'Ant3'!A29","v":true}]
[null,"A30","invest 2.3.1",null,{"$f":"'Ant3'!A30","v":true}]
[null,"A31","gakg 2.3.2",null,{"$f":"'Ant3'!A31","v":true}]
[null,"A32","qualif 2.4",null,{"$f":"'Ant3'!A33","v":true}]
[null,"F18","orga 1",null,{"$f":"'Ant3'!F18","v":0}]
[null,"G18","orga 2",null,{"$f":"'Ant3'!G18","v":0}]
[null,"H18","orga 3",null,{"$f":"'Ant3'!H18","v":0}]
[null,"I18","orga sum",null,{"$f":"'Ant3'!I18","v":0}]
[null,"F19","start 1",null,{"$f":"'Ant3'!F19","v":0}]
[null,"G19","start 2",null,{"$f":"'Ant3'!G19","v":0}]
[null,"H19","start 3",null,{"$f":"'Ant3'!H19","v":0}]
[null,"I19","start sum",null,{"$f":"'Ant3'!I19","v":0}]
[null,"F20","einri 1",null,{"$f":"'Ant3'!F20","v":0}]
[null,"G20","einri 2",null,{"$f":"'Ant3'!G20","v":0}]
[null,"H20","einri 3",null,{"$f":"'Ant3'!H20","v":0}]
[null,"I20","einri sum",null,{"$f":"'Ant3'!I20","v":0}]
[null,"F21","invg 1",null,{"$f":"'Ant3'!F21","v":0}]
[null,"G21","invg 2",null,{"$f":"'Ant3'!G21","v":0}]
[null,"H21","invg 3",null,{"$f":"'Ant3'!H21","v":0}]
[null,"I21","invg sum",null,{"$f":"'Ant3'!I21","v":0}]
[null,"F22","bildg 1",null,{"$f":"'Ant3'!F22","v":0}]
[null,"G22","bildg 2",null,{"$f":"'Ant3'!G22","v":0}]
[null,"H22","bildg 3",null,{"$f":"'Ant3'!H22","v":0}]
[null,"I22","bildg sum",null,{"$f":"'Ant3'!I22","v":0}]
[null,"F23","niff 1",null,{"$f":"'Ant3'!F23","v":0}]
[null,"G23","niff 2",null,{"$f":"'Ant3'!G23","v":0}]
[null,"H23","niff 3",null,{"$f":"'Ant3'!H23","v":0}]
[null,"I23","niff sum",null,{"$f":"'Ant3'!I23","v":0}]
[null,"F24","gesamt1",null,{"$f":"'Ant3'!F24","v":0}]
[null,"G24","gesamt2",null,{"$f":"'Ant3'!G24","v":0}]
[null,"H24","gesamt3",null,{"$f":"'Ant3'!H24","v":0}]
[null,"I24","ges sum",null,{"$f":"'Ant3'!I24","v":0}]
[null,"F35","beaorg1",null,{"$f":"'Ant3'!F36","v":0}]
[null,"G35","beaorg2",null,{"$f":"'Ant3'!G36","v":0}]
[null,"H35","beaorg3",null,{"$f":"'Ant3'!H36","v":0}]
[null,"I35","beaorg sum",null,{"$f":"'Ant3'!I36","v":0}]
[null,"F36","beastart1",null,{"$f":"'Ant3'!F37","v":0}]
[null,"G36","beastart2",null,{"$f":"'Ant3'!G37","v":0}]
[null,"H36","beastart3",null,{"$f":"'Ant3'!H37","v":0}]
[null,"I36","beastart sum",null,{"$f":"'Ant3'!I37","v":0}]
[null,"F37","beaeinri1",null,{"$f":"'Ant3'!F38","v":0}]
[null,"G37","beaeinri2",null,{"$f":"'Ant3'!G38","v":0}]
[null,"H37","beaeinri3",null,{"$f":"'Ant3'!H38","v":0}]
[null,"I37","beaeinri sum",null,{"$f":"'Ant3'!I38","v":0}]
[null,"F38","beasonst1",null,{"$f":"'Ant3'!F39","v":0}]
[null,"G38","beasonst2",null,{"$f":"'Ant3'!G39","v":0}]
[null,"H38","beasonst3",null,{"$f":"'Ant3'!H39","v":0}]
[null,"I38","beasonst sum",null,{"$f":"'Ant3'!I39","v":0}]
[null,"F39","bea gak 1",null,{"$f":"'Ant3'!F40","v":0}]
[null,"G39","bea gak 2",null,{"$f":"'Ant3'!G40","v":0}]
[null,"H39","bea gak 3",null,{"$f":"'Ant3'!H40","v":0}]
[null,"I39","bea gak sum",null,{"$f":"'Ant3'!I40","v":0}]
[null,"F40","bea quali 1",null,{"$f":"'Ant3'!F41","v":0}]
[null,"G40","bea quali 2",null,{"$f":"'Ant3'!G41","v":0}]
[null,"H40","bea quali 3",null,{"$f":"'Ant3'!H41","v":0}]
[null,"I40","bea quali sum",null,{"$f":"'Ant3'!I41","v":0}]
[null,"F41","bea ges 1",null,{"$f":"'Ant3'!F42","v":0}]
[null,"G41","bea ges 2",null,{"$f":"'Ant3'!G42","v":0}]
[null,"H41","bea ges 3",null,{"$f":"'Ant3'!H42","v":0}]
[null,"I41","bea ges sum",null,{"$f":"'Ant3'!I42","v":0}]
[]
["Ant4","D6","fin 1 1",null,{"$f":"'Ant4'!D6","v":0}]
[null,"E6","fin 1 2",null,{"$f":"'Ant4'!E6","v":0}]
[null,"F6","fin 1 3",null,{"$f":"'Ant4'!F6","v":0}]
[null,"G6","fin 1 sum",null,{"$f":"'Ant4'!G6","v":0}]
[null,"D7","fin 2 1",null,{"$f":"'Ant4'!D7","v":0}]
[null,"E7","fin 2 2",null,{"$f":"'Ant4'!E7","v":0}]
[null,"F7","fin 2 3",null,{"$f":"'Ant4'!F7","v":0}]
[null,"G7","fin 2 sum",null,{"$f":"'Ant4'!G7","v":0}]
[null,"D8","fin 2 1",null,{"$f":"'Ant4'!D8","v":0}]
[null,"E8","fin 2 2",null,{"$f":"'Ant4'!E8","v":0}]
[null,"F8","fin 2 3",null,{"$f":"'Ant4'!F8","v":0}]
[null,"G8","fin 2 sum",null,{"$f":"'Ant4'!G8","v":0}]
[null,"D9","fin 2 1",null,{"$f":"'Ant4'!D9","v":0}]
[null,"E9","fin 2 2",null,{"$f":"'Ant4'!E9","v":0}]
[null,"F9","fin 2 3",null,{"$f":"'Ant4'!F9","v":0}]
[null,"G9","fin 2 sum",null,{"$f":"'Ant4'!G9","v":0}]
[null,"D10","fin 3 1",null,{"$f":"'Ant4'!D10","v":0}]
[null,"E10","fin 3 2",null,{"$f":"'Ant4'!E10","v":0}]
[null,"F10","fin 3 3",null,{"$f":"'Ant4'!F10","v":0}]
[null,"G10","fin 3 sum",null,{"$f":"'Ant4'!G10","v":0}]
[null,"D11","fin 4 1",null,{"$f":"'Ant4'!D12","v":0}]
[null,"E11","fin 4 2",null,{"$f":"'Ant4'!E12","v":0}]
[null,"F11","fin 4 3",null,{"$f":"'Ant4'!F12","v":0}]
[null,"G11","fin 4 sum",null,{"$f":"'Ant4'!G12","v":0}]
[null,"D12","fin ges 1",null,{"$f":"'Ant4'!D13","v":0}]
[null,"E12","fin ges 2",null,{"$f":"'Ant4'!E13","v":0}]
[null,"F12","fin ges 3",null,{"$f":"'Ant4'!F13","v":0}]
[null,"G12","fin ges sum",null,{"$f":"'Ant4'!G13","v":0}]
[null,"A24","de-minimis nein",null,{"$f":"'Ant4'!#REF!","v":{"$error":"#REF!"}}]
[null,"A25","de-minimis nein",null,{"$f":"'Ant4'!#REF!","v":{"$error":"#REF!"}}]
[null,"C30","zuwg1",null,{"$f":"'Ant4'!C31","v":0}]
[null,"D30","az1",null,{"$f":"'Ant4'!D31","v":0}]
[null,"E30","förder 1",null,{"$f":"'Ant4'!E31","v":0}]
[null,"F30","datum 1",null,{"$f":"'Ant4'!F31","v":"00:00:00"}]
[null,"C31","zuwg2",null,{"$f":"'Ant4'!C35","v":0}]
[null,"D31","az2",null,{"$f":"'Ant4'!D35","v":0}]
[null,"E31","förder 2",null,{"$f":"'Ant4'!E35","v":0}]
[null,"F31","datum2 ",null,{"$f":"'Ant4'!F35","v":"00:00:00"}]
[null,"C32","zuwg3",null,{"$f":"'Ant4'!C38","v":0}]
[null,"D32","az3",null,{"$f":"'Ant4'!D38","v":0}]
[null,"E32","förder 3",null,{"$f":"'Ant4'!E38","v":0}]
[null,"F32","datum 3",null,{"$f":"'Ant4'!F38","v":"00:00:00"}]
[null,"C36","Förderung anderes Programm",null,{"$f":"'Ant4'!C49","v":0}]
[]
["Ant6","H4","Kostenaufst",null,{"$f":"'Ant6'!H4","v":false}]
[null,"H5","Betriebsspiegel",null,{"$f":"'Ant6'!H5","v":false}]
[null,"H6","Investitionskonzept",null,{"$f":"'Ant6'!H6","v":false}]
[null,"H7","Nachweis ALG",null,{"$f":"'Ant6'!H7","v":false}]
[null,"H8","ESt-Bescheide",null,{"$f":"'Ant6'!H8","v":false}]
[null,"H9","Buchführung",null,{"$f":"'Ant6'!H9","v":false}]
[null,"H10","Anteil Bodenbewirt.",null,{"$f":"'Ant6'!H10","v":false}]
[null,"H11","Kreditbereit",null,{"$f":"'Ant6'!H11","v":false}]
[null,"H12","Eigenmittelnachweis",null,{"$f":"'Ant6'!H12","v":false}]
[null,"H13","Kooper.-Vereinb.",null,{"$f":"'Ant6'!H13","v":false}]
[null,"H14","Gewerbeanmeldung",null,{"$f":"'Ant6'!H14","v":false}]
[null,"H15","Gesellschafts-Vertrag",null,{"$f":"'Ant6'!H15","v":false}]
[null,"H16","Pachtvertrag",null,{"$f":"'Ant6'!H16","v":false}]
[null,"H17","de-minimis",null,{"$f":"'Ant6'!H17","v":false}]
[null,"H18","Baugenehmigung",null,{"$f":"'Ant6'!H18","v":false}]
[null,"H19","Skizze/Lageplan",null,{"$f":"'Ant6'!H19","v":false}]
[null,"H20","Kostenvoranschläge",null,{"$f":"'Ant6'!H20","v":false}]
[null,"H21","Arbeitsvertrag",null,{"$f":"'Ant6'!H21","v":false}]
[null,"H22","Vollmacht",null,{"$f":"'Ant6'!H22","v":false}]
[null,"H23","Dienstleistungsvertrag",null,{"$f":"'Ant6'!H23","v":false}]
[null,"H24","Antrag vorz. Beginn",null,{"$f":"'Ant6'!H24","v":false}]
[null,"H25","Eigenleistung",null,{"$f":"'Ant6'!H25","v":false}]
[null,"H26","Nachgereicht wird",null,{"$f":"'Ant6'!H26","v":false}]
[]
["Anh1","E16","Organisationsausgaben 1.Jahr",null,{"$f":"'Anh1'!E16","v":0}]
[null,"F16","Organisationsausgaben 2.Jahr",null,{"$f":"'Anh1'!F16","v":0}]
[null,"G16","Organisationsausgaben 3.Jahr",null,{"$f":"'Anh1'!G16","v":0}]
[]
["Anh2","E4","Startkosten 1. Jahr",null,{"$f":"'Anh2'!E5","v":0}]
[null,"F4","Startkosten 2. Jahr",null,{"$f":"'Anh2'!F5","v":0}]
[null,"G4","Startkosten 3. Jahr",null,{"$f":"'Anh2'!G5","v":0}]
[null,"H5","Zuschuss 1. Jahr",null,{"$f":"'Anh2'!H6","v":0}]
[null,"H6","Zuschuss 2. Jahr",null,{"$f":"'Anh2'!H7","v":0}]
[null,"H7","Zuschuss 3. Jahr",null,{"$f":"'Anh2'!H8","v":0}]
[null,"E14","Einrichtung Ausstattung 1. Jahr",null,{"$f":"'Anh2'!E15","v":0}]
[null,"F14","Einrichtung Ausstattung 2. Jahr",null,{"$f":"'Anh2'!F15","v":0}]
[null,"G14","Einrichtung Ausstattung 3. Jahr",null,{"$f":"'Anh2'!G15","v":0}]
[null,"E15","Beih E&A 1. Jahr",null,{"$f":"'Anh2'!E16","v":0}]
[null,"F15","Beih E&A 2. Jahr",null,{"$f":"'Anh2'!F16","v":0}]
[null,"G15","Beih E&A 3. Jahr",null,{"$f":"'Anh2'!G16","v":0}]
[null,"E18","Marketing 1. Jahr",null,{"$f":"'Anh2'!E19","v":0}]
[null,"F18","Marketing 2. Jahr",null,{"$f":"'Anh2'!F19","v":0}]
[null,"G18","Marketing 3. Jahr",null,{"$f":"'Anh2'!G19","v":0}]
[null,"E19","Beih Marketing 1. Jahr",null,{"$f":"'Anh2'!E20","v":0}]
[null,"F19","Beih Marketing 2. Jahr",null,{"$f":"'Anh2'!F20","v":0}]
[null,"G19","Beih Marketing 2. Jahr",null,{"$f":"'Anh2'!G20","v":0}]
[null,"E22","Sachausgaben zus. 1. Jahr",null,{"$f":"'Anh2'!E23","v":0}]
[null,"F22","Sachausgaben zus. 2. Jahr",null,{"$f":"'Anh2'!F23","v":0}]
[null,"G22","Sachausgaben zus. 3. Jahr",null,{"$f":"'Anh2'!G23","v":0}]
[null,"E23","Zuschusszus. 1. Jahr",null,{"$f":"'Anh2'!E24","v":0}]
[null,"F23","Zuschusszus. 2. Jahr",null,{"$f":"'Anh2'!F24","v":0}]
[null,"G23","Zuschusszus. 3. Jahr",null,{"$f":"'Anh2'!G24","v":0}]
[null,"E29","Qualifizierung ff 1. Jahr",null,{"$f":"'Anh2'!E30","v":0}]
[null,"F29","Qualifizierung ff 2. Jahr",null,{"$f":"'Anh2'!F30","v":0}]
[null,"G29","Qualifizierung ff 3. Jahr",null,{"$f":"'Anh2'!G30","v":0}]
[null,"E30","Qualif Zuschuss 1. Jahr",null,{"$f":"'Anh2'!E31","v":0}]
[null,"F30","Qualif Zuschuss 2. Jahr",null,{"$f":"'Anh2'!F31","v":0}]
[null,"G30","Qualif Zuschuss 3. Jahr",null,{"$f":"'Anh2'!G31","v":0}]
[]
["Anh3","E6","Errichtung, Modernis. 1. Jahr",null,{"$f":"'Anh3'!E7","v":0}]
[null,"F6","Errichtung, Modernis. 2. Jahr",null,{"$f":"'Anh3'!F7","v":0}]
[null,"G6","Errichtung, Modernis. 3. Jahr",null,{"$f":"'Anh3'!G7","v":0}]
[null,"H6","Errichtung, Modernis. Gesamt",null,{"$f":"'Anh3'!H7","v":0}]
[null,"E10","Maschinen 1. Jahr",null,{"$f":"'Anh3'!E10","v":0}]
[null,"F10","Maschinen 2. Jahr",null,{"$f":"'Anh3'!F10","v":0}]
[null,"G10","Maschinen 3. Jahr",null,{"$f":"'Anh3'!G10","v":0}]
[null,"H10","Maschinen Gesamt",null,{"$f":"'Anh3'!H10","v":0}]
[null,"E13","Allg Aufw 1. Jahr",null,{"$f":"'Anh3'!E13","v":0}]
[null,"F13","Allg Aufw 2. Jahr",null,{"$f":"'Anh3'!F13","v":0}]
[null,"G13","Allg Aufw 3. Jahr",null,{"$f":"'Anh3'!G13","v":0}]
[null,"H13","Allg Aufw Gesamt",null,{"$f":"'Anh3'!H13","v":0}]
[null,"E17","Ausgaben 1. Jahr",null,{"$f":"'Anh3'!E17","v":0}]
[null,"F17","Ausgaben 2. Jahr",null,{"$f":"'Anh3'!F17","v":0}]
[null,"G17","Ausgaben 3. Jahr",null,{"$f":"'Anh3'!G17","v":0}]
[null,"H17","Ausgaben Gesamt",null,{"$f":"'Anh3'!H17","v":0}]
[null,"E19","anerkennb AllgKosten 1. Jahr",null,{"$f":"'Anh3'!E19","v":0}]
[null,"F19","anerkennb AllgKosten 2. Jahr",null,{"$f":"'Anh3'!F20","v":0}]
[null,"G19","anerkennb AllgKosten 3. Jahr",null,{"$f":"'Anh3'!G19","v":0}]
[null,"H19","anerkennb AllgKosten Gesamt",null,{"$f":"'Anh3'!H19","v":0}]
[null,"E20","Bemessungsgrundlage 1. Jahr",null,{"$f":"'Anh3'!E20","v":0}]
[null,"F20","Bemessungsgrundlage 2. Jahr",null,{"$f":"'Anh3'!F20","v":0}]
[null,"G20","Bemessungsgrundlage 3. Jahr",null,{"$f":"'Anh3'!G20","v":0}]
[null,"H20","Bemessungsgrundlage Gesamt",null,{"$f":"'Anh3'!H20","v":0}]
[null,"E21","Zuw-Betrag 1. Jahr",null,{"$f":"'Anh3'!E21","v":0}]
[null,"F21","Zuw-Betrag 2. Jahr",null,{"$f":"'Anh3'!F21","v":0}]
[null,"G21","Zuw-Betrag 3. Jahr",null,{"$f":"'Anh3'!G21","v":0}]
[null,"H21","Zuw-Betrag Gesamt",null,{"$f":"'Anh3'!H21","v":0}]
[]
[]
[]
[]
[]
[]
[]
[]
[null,null,null,null,null,null,1,"Start"]
[null,null,null,null,null,null,2,"Ant1"]
[null,null,null,null,null,null,3,"Ant2"]
[null,null,null,null,null,null,4,"Ant3"]
[null,null,null,null,null,null,5,"Ant4"]
[null,null,null,null,null,null,6,"Ant5"]
[null,null,null,null,null,null,7,"Ant6"]
[null,null,null,null,null,null,8,"Plausi"]
[null,null,null,null,null,null,9,"Anh1"]
[null,null,null,null,null,null,10,"Anh2"]
[null,null,null,null,null,null,11,"Anh3"]
[null,null,null,null,null,null,12,"AusgOrgaBerat"]
[null,null,null,null,null,null,13,"AusgOrgaKonzep"]
[null,null,null,null,null,null,14,"AusgOrgaGeschäft"]
[null,null,null,null,null,null,15,"AusgStartbeih"]
[null,null,null,null,null,null,16,"AusgStratEuA"]
[null,null,null,null,null,null,17,"AusgStratSach"]
[null,null,null,null,null,null,18,"AusgGAKImmo"]
[null,null,null,null,null,null,19,"AusgGAKMasch"]
[null,null,null,null,null,null,20,"AusgGAKallg.Auf"]
[null,null,null,null,null,null,21,"AusgQuali"]
[null,null,null,null,null,null,22,"Betriebsspiegel"]
[null,null,null,null,null,null,23,"Uebertragung"]
[null,null,null,null,null,null,24,"Liste1"]
[null,null,null,null,null,null,25,"Kulisse"]
[null,null,null,null,null,null,26,"Betreuer"]
[null,null,null,null,null,null,27,"KreisGemeindeListe"]

{"sheet":"Liste1","index":24,"n_rows":52,"n_cols":3,"rows_kept":52,"cut":false,"hidden":true,"merged":[]}
["Einzelunternehmen"]
["Familien-GbR"]
["Sonstige GbR"]
["Sonstige Personengesellschaft"]
["Kapitalgesellschaft"]
["eingetr. Verein"]
["Genossenschaft"]
["Sonstige Rechtsform"]
[]
[1,"Kreisstellen Höxter, Lippe, Paderborn","33034 Brakel, Bohlenweg 3"]
[2,"Kreisstellen Rhein-Erft-Kreis, Rhein-Kreis Neuss, Rhein-Sieg-Kreis","50765 Köln-Auweiler, Gartenstraße 11"]
[3,"Kreisstelle Steinfurt","48369 Saerbeck, Hembergener Straße 10"]
[]
[]
[]
[]
[]
[]
[]
[]
[]
[]
[]
[]
[]
[]
[]
[]
[]
[]
[]
[]
[]
[]
[]
[]
[]
[]
[]
[]
[]
[]
["Einzelunternehmen"]
["GbR"]
["OHG"]
["Kommanditgesellschaft (KG)"]
["GmbH & Co.KG"]
["Genossenschaft"]
[]
["GmbH"]
["AG"]
["KGaA"]

{"sheet":"Kulisse","index":25,"n_rows":398,"n_cols":3,"rows_kept":398,"cut":false,"hidden":true,"merged":[]}
["TGEM_NR_KREIS","TGEM_NR_GEMEINDE","TGEM_NR_ILEKULI"]
["111","000",1]
["112","000",1]
["113","000",1]
["114","000",1]
["116","000",1]
["117","000",1]
["119","000",1]
["120","000",1]
["122","000",1]
["124","000",1]
["154","004",4]
["154","008",4]
["154","012",4]
["154","016",4]
["154","020",4]
["154","024",4]
["154","028",4]
["154","032",4]
["154","036",4]
["154","040",4]
["154","044",4]
["154","048",4]
["154","052",4]
["154","056",4]
["154","060",4]
["154","064",4]
["158","004",2]
["158","008",2]
["158","012",2]
["158","016",2]
["158","020",2]
["158","024",4]
["158","026",2]
["158","028",2]
["158","032",2]
["158","036",2]
["162","004",2]
["162","008",2]
["162","012",4]
["162","016",2]
["162","020",4]
["162","022",2]
["162","024",1]
["162","028",4]
["166","004",4]
["166","008",4]
["166","012",4]
["166","016",4]
["166","020",4]
["166","024",4]
["166","028",4]
["166","032",4]
["166","036",4]
["170","004",4]
["170","008",2]
["170","012",4]
["170","016",4]
["170","020",4]
["170","024",2]
["170","028",4]
["170","032",4]
["170","036",4]
["170","040",4]
["170","044",4]
["170","048",4]
["170","052",4]
["313","000",1]
["314","000",1]
["315","000",1]
["316","000",1]
["354","004",2]
["354","008",4]
["354","012",4]
["354","016",2]
["354","020",4]
["354","024",4]
["354","028",4]
["354","032",4]
["354","036",2]
["358","004",4]
["358","008",4]
["358","012",4]
["358","016",4]
["358","020",4]
["358","024",4]
["358","028",4]
["358","032",4]
["358","036",4]
["358","040",4]
["358","044",4]
["358","048",4]
["358","052",4]
["358","056",4]
["358","060",4]
["362","004",4]
["362","008",4]
["362","012",2]
["362","016",4]
["362","020",4]
["362","024",2]
["362","028",2]
["362","032",4]
["362","036",4]
["362","040",2]
["366","004",4]
["366","008",4]
["366","012",4]
["366","016",4]
["366","020",4]
["366","024",4]
["366","028",4]
["366","032",4]
["366","036",4]
["366","040",4]
["366","044",4]
["370","004",4]
["370","008",4]
["370","012",4]
["370","016",4]
["370","020",4]
["370","024",4]
["370","028",2]
["370","032",4]
["370","036",4]
["370","040",4]
["374","004",4]
["374","008",4]
["374","012",4]
["374","016",4]
["374","020",4]
["374","024",4]
["374","028",4]
["374","032",4]
["374","036",4]
["374","040",4]
["374","044",4]
["374","048",4]
["374","052",4]
["378","004",2]
["378","008",4]
["378","012",4]
["378","016",4]
["378","020",4]
["378","024",4]
["378","028",4]
["378","032",4]
["382","004",4]
["382","008",4]
["382","012",4]
["382","016",4]
["382","020",4]
["382","024",4]
["382","028",4]
["382","032",4]
["382","036",4]
["382","040",4]
["382","044",2]
["382","048",4]
["382","052",4]
["382","056",2]
["382","060",2]
["382","064",4]
["382","068",2]
["382","072",4]
["382","076",4]
["512","000",1]
["513","000",1]
["515","000",3]
["554","004",4]
["554","008",4]
["554","012",4]
["554","016",4]
["554","020",4]
["554","024",4]
["554","028",4]
["554","032",4]
["554","036",4]
["554","040",4]
["554","044",4]
["554","048",4]
["554","052",4]
["554","056",4]
["554","060",4]
["554","064",4]
["554","068",4]
["558","004",4]
["558","008",4]
["558","012",4]
["558","016",4]
["558","020",4]
["558","024",4]
["558","028",4]
["558","032",4]
["558","036",4]
["558","040",4]
["558","044",4]
["562","004",1]
["562","008",4]
["562","012",4]
["562","014",1]
["562","016",4]
["562","020",1]
["562","024",2]
["562","028",4]
["562","032",1]
["562","036",2]
["566","004",4]
["566","008",4]
["566","012",4]
["566","016",4]
["566","020",4]
["566","024",4]
["566","028",4]
["566","032",4]
["566","036",4]
["566","040",4]
["566","044",4]
["566","048",4]
["566","052",4]
["566","056",4]
["566","060",4]
["566","064",4]
["566","068",4]
["566","072",4]
["566","076",4]
["566","080",4]
["566","084",4]
["566","088",4]
["566","092",4]
["566","096",4]
["570","004",4]
["570","008",4]
["570","012",4]
["570","016",4]
["570","020",4]
["570","024",4]
["570","028",4]
["570","032",4]
["570","036",4]
["570","040",4]
["570","044",4]
["570","048",4]
["570","052",4]
["711","000",3]
["754","004",4]
["754","008",4]
["754","012",4]
["754","016",4]
["754","020",4]
["754","024",4]
["754","028",4]
["754","032",4]
["754","036",4]
["754","040",4]
["754","044",4]
["754","048",4]
["754","052",4]
["758","004",4]
["758","008",4]
["758","012",4]
["758","016",4]
["758","020",4]
["758","024",4]
["758","028",4]
["758","032",4]
["758","036",4]
["762","004",4]
["762","008",4]
["762","012",4]
["762","016",4]
["762","020",4]
["762","024",4]
["762","028",4]
["762","032",4]
["762","036",4]
["762","040",4]
["766","004",4]
["766","008",4]
["766","012",4]
["766","016",4]
["766","020",4]
["766","024",4]
["766","028",4]
["766","032",4]
["766","036",4]
["766","040",4]
["766","044",4]
["766","048",4]
["766","052",4]
["766","056",4]
["766","060",4]
["766","064",4]
["770","004",4]
["770","008",4]
["770","012",4]
["770","016",4]
["770","020",4]
["770","024",4]
["770","028",4]
["770","032",4]
["770","036",4]
["770","040",4]
["770","044",4]
["774","004",4]
["774","008",4]
["774","012",4]
["774","016",4]
["774","020",4]
["774","024",4]
["774","028",4]
["774","032",3]
["774","036",4]
["774","040",4]
["911","000",1]
["913","000",1]
["914","000",1]
["915","000",4]
["916","000",1]
["954","004",4]
["954","008",4]
["954","012",2]
["954","016",4]
["954","020",2]
["954","024",2]
["954","028",4]
["954","032",2]
["954","036",1]
["958","004",4]
["958","008",4]
["958","012",4]
["958","016",4]
["958","020",4]
["958","024",4]
["958","028",4]
["958","032",4]
["958","036",4]
["958","040",4]
["958","044",4]
["958","048",4]
["962","004",4]
["962","008",4]
["962","012",4]
["962","016",4]
["962","020",4]
["962","024",4]
["962","028",4]
["962","032",4]
["962","036",4]
["962","040",4]
["962","044",4]
["962","048",4]
["962","052",4]
["962","056",4]
["962","060",4]
["966","004",4]
["966","008",4]
["966","012",4]
["966","016",4]
["966","020",4]
["966","024",4]
["966","028",4]
["970","004",4]
["970","008",4]
["970","012",4]
["970","016",4]
["970","020",4]
["970","024",4]
["970","028",4]
["970","032",4]
["970","036",4]
["970","040",3]
["970","044",4]
["974","004",4]
["974","008",4]
["974","012",4]
["974","016",4]
["974","020",4]
["974","024",4]
["974","028",4]
["974","032",4]
["974","036",4]
["974","040",4]
["974","044",4]
["974","048",4]
["974","052",4]
["974","056",4]
["978","004",2]
["978","008",4]
["978","012",4]
["978","016",2]
["978","020",2]
["978","024",2]
["978","028",2]
["978","032",4]
["978","036",4]
["978","040",4]
["999","999",4]

{"sheet":"Betreuer","index":26,"n_rows":43,"n_cols":9,"rows_kept":43,"cut":false,"hidden":true,"merged":[]}
["AF08_BETREUER_NR","AF08_NAME","AF08_VORNAME","AF08_STRASSE","AF08_PLZ","AF08_ORT","AF08_TELEFON","AF08_KRST_NR","e-mail-Adresse"]
[99,"ohne Betreuer","","",null,"",""]
[64,"Beratungsstelle Borken - Frau Wettels","Hanna","Borkener Straße 25",45325,"Borken","02861/922752",601,"hanna.wettels@lwk.nrw.de"]
[63,"Beratungsstelle Soest - Frau Thörner","Karin","Ostinghausen (Haus Düsse)",59505,"Bad Sassendorf","02945/989536",617,"karin.thoerner@lwk.nrw.de"]
[62,"Beratungsstelle Steinfurt - Frau Jürgensmeier-Lotz","Susanne","Hembergener Straße 10",48369,"Saerbeck","02574/927726",618,"susanne.juergensmeier-lotz@lwk.nrw.de"]
[61,"Beratungsstelle Paderborn - Frau W. Kuck","Walburga","Bleichstraße 41",33102,"Paderborn","05251/1354-55",613,"walburga.kuck@lwk.nrw.de"]
[60,"Beratungsstelle Köln-Auweiler - Frau Biermann","Birgit","Gartenstraße 11 a",50765,"Köln-Auweiler","0221/5340108",402,"birgit.biermann@lwk.nrw.de"]
[37,"Ohne Personenbelegung LUB ","","",null,"","",499,""]
[35,"Telle","Martin","Timbergstrasse 51",58513,"Lüdenscheid","02351 14215",499,"Telle14215@aol.com"]
[34,"Weifels","Klaus","Im Rottfeld 25",41462,"Neuss","02131 541296",499,"heinz.anette.weifels@t-online.de"]
[33,"Mews","Klaus","Gildehauser Weg 239",48529,"Nordhorn","05921 13120",499,"klaus.mews@t-online.de"]
[32,"Massier","Hubert","Asternweg 6",41363,"Jüchen","02182/5538",499,"h.massier@t-online.de"]
[31,"LUM - Herr Erkelenz","Lutz","Grünscheid 25",42799,"Leichlingen","02175 /166206",499,"lum.erkelenz@freenet.de"]
[30,"LBB Brandenburg","Ingenieurbüro Hottelmann und C","Dorfstraße 18",14476,"Satzkorn","",499]
[29,"LUB NRW - Herr Schütte","Stefan","Johann-Walling-Str. 45",46325,"Borken","02861 9227-48",601,"stefan.schuette@lwk.nrw.de"]
[28,"LUB NRW - Herr Ostermann ","Gerhard","Nevinghoff 40",48147,"Münster","0251 2376-406",611,"Gerhard.Ostermann@lwk.nrw.de"]
[27,"LUB NRW - Herr Siegenbrink","Georg","Bohlenweg 3",33034,"Brakel","05272 3701-223",607,"Georg.Siegenbrink@lwk.nrw.de"]
[26,"LUB GmbH - Frau Maria Beaupoil","Maria","Elsenpaß 5",47533,"Kleve","02821 / 996208",415,"maria.beaupoil@lwk.nrw.de"]
[25,"LUB GmbH- Herr Müller-Rechmann","Thomas","Waldenburger Straße 6",48231,"Warendorf","02581/6379-32",619,""]
[24,"LUB GmbH - Herr Nagelschmitz","Andreas","Gartenstraße 11 a",50765,"Köln-Auweiler","0221/5340119",402,"andreas.nagelschmitz@lwk.nrw.de"]
[23,"LUB GmbH - Frau Husmann","Helga","Borkener Straße 25",48653,"Coesfeld","02541/910-241",602,"helga.husmann@lwk.nrw.de"]
[22,"LUB GmbH - Herr Lauschner","Olaf","Platanenallee 56",59425,"Unna","02303/9616135",615,"olaf.lauschner@lwk.nrw.de"]
[21,"LUB GmbH - Frau Chudalla","Frietrud","Gartenstraße 11 a",50765,"Köln-Auweiler","0211/5340111",402,"friedtrud.chudalla@lwk.nrw.de"]
[20,"LUB GmbH - Herr Boerman","Jürgen","Johann-Walling-Strasse 45",46325,"Borken","02861/922739",601,"juergen.boermann@lwk.nrw.de"]
[19,"LUB GmbH - Frau Braune","Daniela","",null,"","",null,"daniela.braune@lwk.nrw.de"]
[18,"LUB GmbH - Herr Kühne","Hans","Nevinghoff 40",48147,"Münster","0251/2376-912",611]
[17,"LUB GmbH - Frau Willebrand","Christiane","Waldenburger Straße 6",48231,"Warendorf","02581 637934",619,"christiane.willebrand@lwk.nrw.de"]
[16,"LUB GmbH - Frau Gödde","Kathrin","Grebbecker Weg 3",58509,"Lüdenscheid ","02351 969140 ",609,"kathrin.Goedde@lwk.nrw.de"]
[15,"LUB GmbH - Herr Brunsiek","Falk","Bohlenweg 3",33034,"Brakel","05272 3701222",607,"falk.brunsiek@lwk.nrw.de"]
[14,"LUB Gmb - Herr Schulze Temming","Bernhard","Bohlenweg 3",33034,"Brakel","",400,"best.as@t-online.de"]
[13,"LUB GmbH - Frau Stelten","Gerda","Gereonstraße 80",41747,"Viersen","02162/370663",416,"gerda.stelten@lwk.nrw.de"]
[12,"LUB GmbH - Herr Sabbert","Stefan","Sedanplatz 9",32791,"Lage","05232/6082-75",608]
[11,"LUB GmbH - Herr Pohl","Georg","Rütger-von-Scheven Str. 44",52349,"Düren","02421/592318",405,"georg.pohl@lwk.nrw.de"]
[10,"LUB GmbH - Herr Kalthoff","Uwe","Gartenstraße 11 a",50765,"Köln-Auweiler","0221/5340119",402,"uwe.kalthoff@lwk.nrw.de"]
[9,"LUB GmbH - Herr Kersting","Josef","Dünnefeldweg 12",59872,"Meschede","0291/9915-34",606,"josef.kersting@lwk.nrw.de"]
[8,"LUB GmbH - Herr M. Hoffmann","Marco","Hembergener Str. 10",48369,"Saerbeck","02574/4927764",611,"marco.hoffmann@lwk.nrw.de"]
[7,"LUB GmbH - Herr B. Hoffmann","Bernhard","Elsenpaß 5",47533,"Kleve","02821 996208",415,"bernhard.hoffmann.@lwk.nrw.de"]
[6,"LUB GmbH - Herr Hoepfner","Reinhard","Grebbecker Weg 3",58509,"Lüdenscheid","02351969145",603]
[5,"LUB GmbH - Herr Fry","Burkhard","Nevinghoff 40",48147,"Münster","0251/2376-326",499,"burkhard.fry@lwk.nrw.de"]
[4,"LUB GmbH - Herr Enning","Rudolf","Hembergener Str. 10",48369,"Saerbeck","02574/927764",618,"rudolf.enning@lwk.nrw.de"]
[3,"LUB GmbH - Herr Deitermann","Bernhard","Bohlenweg 3",33034,"Brakel","05272 3701221",607,"bernhard.deitermann@lwk.nrw.de"]
[2,"LBB - Herr Dreimann","Wilhelm","Wellentruper Str. 14",33813,"Oerlinghausen","0171/7280027",null,"wilhelm@dreimann.net"]
[1,"GVAgrar West - Herr Kemmerling","Christian","Butenpaß 9a",46414,"Rhede","02872/803703",400,"gvagrar-west@gvagrar.de"]

{"sheet":"KreisGemeindeListe","index":27,"n_rows":397,"n_cols":6,"rows_kept":397,"cut":false,"hidden":true,"merged":[]}
["DüsseldorfStadt_111","DüsseldorfStadt_111","Düsseldorf,Stadt_000",null,"Kreis","Aachen_354"]
["DuisburgStadt_112","DuisburgStadt_112","Duisburg,Stadt_000",null,"Kreis","AachenStadt_313"]
["EssenStadt_113","EssenStadt_113","Essen,Stadt_000",null,"Kreis","BielefeldStadt_711"]
["KrefeldStadt_114","KrefeldStadt_114","Krefeld,Stadt_000",null,"Kreis","BochumStadt_911"]
["MönchengladbachStadt_116","MönchengladbachStadt_116","Mönchengladbach,Stadt_000",null,"Kreis","BonnStadt_314"]
["MülheimanderRuhrStadt_117","MülheimanderRuhrStadt_117","Mülheim an der Ruhr,Stadt_000",null,"Kreis","Borken_554"]
["OberhausenStadt_119","OberhausenStadt_119","Oberhausen,Stadt_000",null,"Kreis","BottropStadt_512"]
["RemscheidStadt_120","RemscheidStadt_120","Remscheid,Stadt_000",null,"Kreis","Coesfeld_558"]
["SolingenStadt_122","SolingenStadt_122","Solingen,Stadt_000",null,"Kreis","DortmundStadt_913"]
["WuppertalStadt_124","WuppertalStadt_124","Wuppertal,Stadt_000",null,"Kreis","DuisburgStadt_112"]
["Kleve_154","Kleve_154","Bedburg_Hau_004",null,"Kreis","Düren_358"]
["Kleve_154","Kleve_154","Emmerich,Stadt_008",null,"Kreis","DüsseldorfStadt_111"]
["Kleve_154","Kleve_154","Geldern,Stadt_012",null,"Kreis","Ennepe_Ruhr_Kreis_954"]
["Kleve_154","Kleve_154","Goch,Stadt_016",null,"Kreis","EssenStadt_113"]
["Kleve_154","Kleve_154","Issum_020",null,"Kreis","Euskirchen_366"]
["Kleve_154","Kleve_154","Kalkar,Stadt_024",null,"Kreis","GelsenkirchenStadt_513"]
["Kleve_154","Kleve_154","Kerken_028",null,"Kreis","Gütersloh_754"]
["Kleve_154","Kleve_154","Kevelaer,Stadt_032",null,"Kreis","HagenStadt_914"]
["Kleve_154","Kleve_154","Kleve,Stadt_036",null,"Kreis","HammStadt_915"]
["Kleve_154","Kleve_154","Kranenburg_040",null,"Kreis","Heinsberg_370"]
["Kleve_154","Kleve_154","Rees,Stadt_044",null,"Kreis","Herford_758"]
["Kleve_154","Kleve_154","Rheurdt_048",null,"Kreis","HerneStadt_916"]
["Kleve_154","Kleve_154","Straelen,Stadt_052",null,"Kreis","Hochsauerlandkreis_958"]
["Kleve_154","Kleve_154","Uedem_056",null,"Kreis","Höxter_762"]
["Kleve_154","Kleve_154","Wachtendonk_060",null,"Kreis","Kleve_154"]
["Kleve_154","Kleve_154","Weeze_064",null,"Kreis","KölnStadt_315"]
["Mettmann_158","Mettmann_158","Erkrath,Stadt_004",null,"Kreis","KrefeldStadt_114"]
["Mettmann_158","Mettmann_158","Haan,Stadt_008",null,"Kreis","KreisausserhalbNRW_999"]
["Mettmann_158","Mettmann_158","Heiligenhaus,Stadt_012",null,"Kreis","LeverkusenStadt_316"]
["Mettmann_158","Mettmann_158","Hilden,Stadt_016",null,"Kreis","Lippe_766"]
["Mettmann_158","Mettmann_158","Langenfeld (Rheinland),Sta_020",null,"Kreis","MärkischerKreis_962"]
["Mettmann_158","Mettmann_158","Mettmann,Stadt_024",null,"Kreis","Mettmann_158"]
["Mettmann_158","Mettmann_158","Monheim,Stadt_026",null,"Kreis","Minden_Lübbecke_770"]
["Mettmann_158","Mettmann_158","Ratingen,Stadt_028",null,"Kreis","MönchengladbachStadt_116"]
["Mettmann_158","Mettmann_158","Velbert,Stadt_032",null,"Kreis","MülheimanderRuhrStadt_117"]
["Mettmann_158","Mettmann_158","Wülfrath,Stadt_036",null,"Kreis","MünsterStadt_515"]
["Rhein_KreisNeuss_162","Rhein_KreisNeuss_162","Dormagen,Stadt_004",null,"Kreis","OberbergischerKreis_374"]
["Rhein_KreisNeuss_162","Rhein_KreisNeuss_162","Grevenbroich,Stadt_008",null,"Kreis","OberhausenStadt_119"]
["Rhein_KreisNeuss_162","Rhein_KreisNeuss_162","Jüchen_012",null,"Kreis","Olpe_966"]
["Rhein_KreisNeuss_162","Rhein_KreisNeuss_162","Kaarst,Stadt_016",null,"Kreis","Paderborn_774"]
["Rhein_KreisNeuss_162","Rhein_KreisNeuss_162","Korschenbroich,Stadt_020",null,"Kreis","Recklinghausen_562"]
["Rhein_KreisNeuss_162","Rhein_KreisNeuss_162","Meerbusch,Stadt_022",null,"Kreis","RemscheidStadt_120"]
["Rhein_KreisNeuss_162","Rhein_KreisNeuss_162","Neuss,Stadt_024",null,"Kreis","Rhein_Erft_Kreis_362"]
["Rhein_KreisNeuss_162","Rhein_KreisNeuss_162","Rommerskirchen_028",null,"Kreis","Rhein_KreisNeuss_162"]
["Viersen_166","Viersen_166","Brüggen_004",null,"Kreis","Rhein_Sieg_Kreis_382"]
["Viersen_166","Viersen_166","Grefrath_008",null,"Kreis","Rheinisch_BergischerKreis_378"]
["Viersen_166","Viersen_166","Kempen,Stadt_012",null,"Kreis","Siegen_Wittgenstein_970"]
["Viersen_166","Viersen_166","Nettetal,Stadt_016",null,"Kreis","Soest_974"]
["Viersen_166","Viersen_166","Niederkrüchten_020",null,"Kreis","SolingenStadt_122"]
["Viersen_166","Viersen_166","Schwalmtal_024",null,"Kreis","Steinfurt_566"]
["Viersen_166","Viersen_166","Tönisvorst,Stadt_028",null,"Kreis","Unna_978"]
["Viersen_166","Viersen_166","Viersen,Stadt_032",null,"Kreis","Viersen_166"]
["Viersen_166","Viersen_166","Willich,Stadt_036",null,"Kreis","Warendorf_570"]
["Wesel_170","Wesel_170","Alpen_004",null,"Kreis","Wesel_170"]
["Wesel_170","Wesel_170","Dinslaken,Stadt_008",null,"Kreis","WuppertalStadt_124"]
["Wesel_170","Wesel_170","Hamminkeln_012"]
["Wesel_170","Wesel_170","Hünxe_016"]
["Wesel_170","Wesel_170","Kamp_Lintfort,Stadt_020"]
["Wesel_170","Wesel_170","Moers,Stadt_024"]
["Wesel_170","Wesel_170","Neukirchen_Vluyn,Stadt_028"]
["Wesel_170","Wesel_170","Rheinberg,Stadt_032"]
["Wesel_170","Wesel_170","Schermbeck_036"]
["Wesel_170","Wesel_170","Sonsbeck_040"]
["Wesel_170","Wesel_170","Voerde (Niederrhein),Stadt_044"]
["Wesel_170","Wesel_170","Wesel,Stadt_048"]
["Wesel_170","Wesel_170","Xanten,Stadt_052"]
["AachenStadt_313","AachenStadt_313","Aachen,Stadt_000"]
["BonnStadt_314","BonnStadt_314","Bonn,Stadt_000"]
["KölnStadt_315","KölnStadt_315","Köln,Stadt_000"]
["LeverkusenStadt_316","LeverkusenStadt_316","Leverkusen,Stadt_000"]
["Aachen_354","Aachen_354","Alsdorf,Stadt_004"]
["Aachen_354","Aachen_354","Baesweiler,Stadt_008"]
["Aachen_354","Aachen_354","Eschweiler,Stadt_012"]
["Aachen_354","Aachen_354","Herzogenrath,Stadt_016"]
["Aachen_354","Aachen_354","Monschau,Stadt_020"]
["Aachen_354","Aachen_354","Roetgen_024"]
["Aachen_354","Aachen_354","Simmerath_028"]
["Aachen_354","Aachen_354","Stolberg(Rhld.),Stadt_032"]
["Aachen_354","Aachen_354","Würselen,Stadt_036"]
["Düren_358","Düren_358","Aldenhoven_004"]
["Düren_358","Düren_358","Düren,Stadt_008"]
["Düren_358","Düren_358","Heimbach,Stadt_012"]
["Düren_358","Düren_358","Hürtgenwald_016"]
["Düren_358","Düren_358","Inden_020"]
["Düren_358","Düren_358","Jülich,Stadt_024"]
["Düren_358","Düren_358","Kreuzau_028"]
["Düren_358","Düren_358","Langerwehe_032"]
["Düren_358","Düren_358","Linnich,Stadt_036"]
["Düren_358","Düren_358","Merzenich_040"]
["Düren_358","Düren_358","Nideggen,Stadt_044"]
["Düren_358","Düren_358","Niederzier_048"]
["Düren_358","Düren_358","Nörvenich_052"]
["Düren_358","Düren_358","Titz_056"]
["Düren_358","Düren_358","Vettweiß_060"]
["Rhein_Erft_Kreis_362","Rhein_Erft_Kreis_362","Bedburg,Stadt_004"]
["Rhein_Erft_Kreis_362","Rhein_Erft_Kreis_362","Bergheim,Stadt_008"]
["Rhein_Erft_Kreis_362","Rhein_Erft_Kreis_362","Brühl,Stadt_012"]
["Rhein_Erft_Kreis_362","Rhein_Erft_Kreis_362","Elsdorf_016"]
["Rhein_Erft_Kreis_362","Rhein_Erft_Kreis_362","Erftstadt,Stadt_020"]
["Rhein_Erft_Kreis_362","Rhein_Erft_Kreis_362","Frechen,Stadt_024"]
["Rhein_Erft_Kreis_362","Rhein_Erft_Kreis_362","Hürth,Stadt_028"]
["Rhein_Erft_Kreis_362","Rhein_Erft_Kreis_362","Kerpen,Stadt_032"]
["Rhein_Erft_Kreis_362","Rhein_Erft_Kreis_362","Pulheim,Stadt_036"]
["Rhein_Erft_Kreis_362","Rhein_Erft_Kreis_362","Wesseling,Stadt_040"]
["Euskirchen_366","Euskirchen_366","Bad Münstereifel,Stadt_004"]
["Euskirchen_366","Euskirchen_366","Blankenheim_008"]
["Euskirchen_366","Euskirchen_366","Dahlem_012"]
["Euskirchen_366","Euskirchen_366","Euskirchen,Stadt_016"]
["Euskirchen_366","Euskirchen_366","Hellenthal_020"]
["Euskirchen_366","Euskirchen_366","Kall_024"]
["Euskirchen_366","Euskirchen_366","Mechernich,Stadt_028"]
["Euskirchen_366","Euskirchen_366","Nettersheim_032"]
["Euskirchen_366","Euskirchen_366","Schleiden,Stadt_036"]
["Euskirchen_366","Euskirchen_366","Weilerswist_040"]
["Euskirchen_366","Euskirchen_366","Zülpich,Stadt_044"]
["Heinsberg_370","Heinsberg_370","Erkelenz,Stadt_004"]
["Heinsberg_370","Heinsberg_370","Gangelt_008"]
["Heinsberg_370","Heinsberg_370","Geilenkirchen,Stadt_012"]
["Heinsberg_370","Heinsberg_370","Heinsberg,Stadt_016"]
["Heinsberg_370","Heinsberg_370","Hückelhoven,Stadt_020"]
["Heinsberg_370","Heinsberg_370","Selfkant_024"]
["Heinsberg_370","Heinsberg_370","Übach_Palenberg,Stadt_028"]
["Heinsberg_370","Heinsberg_370","Waldfeucht_032"]
["Heinsberg_370","Heinsberg_370","Wassenberg,Stadt_036"]
["Heinsberg_370","Heinsberg_370","Wegberg,Stadt_040"]
["OberbergischerKreis_374","OberbergischerKreis_374","Bergneustadt,Stadt_004"]
["OberbergischerKreis_374","OberbergischerKreis_374","Engelskirchen_008"]
["OberbergischerKreis_374","OberbergischerKreis_374","Gummersbach,Stadt_012"]
["OberbergischerKreis_374","OberbergischerKreis_374","Hückeswagen,Stadt_016"]
["OberbergischerKreis_374","OberbergischerKreis_374","Lindlar_020"]
["OberbergischerKreis_374","OberbergischerKreis_374","Marienheide_024"]
["OberbergischerKreis_374","OberbergischerKreis_374","Morsbach_028"]
["OberbergischerKreis_374","OberbergischerKreis_374","Nümbrecht_032"]
["OberbergischerKreis_374","OberbergischerKreis_374","Radevormwald,Stadt_036"]
["OberbergischerKreis_374","OberbergischerKreis_374","Reichshof_040"]
["OberbergischerKreis_374","OberbergischerKreis_374","Waldbröl,Stadt_044"]
["OberbergischerKreis_374","OberbergischerKreis_374","Wiehl,Stadt_048"]
["OberbergischerKreis_374","OberbergischerKreis_374","Wipperfürth,Stadt_052"]
["Rheinisch_BergischerKreis_378","Rheinisch_BergischerKreis_378","Bergisch Gladbach,Stadt_004"]
["Rheinisch_BergischerKreis_378","Rheinisch_BergischerKreis_378","Burscheid,Stadt_008"]
["Rheinisch_BergischerKreis_378","Rheinisch_BergischerKreis_378","Kürten_012"]
["Rheinisch_BergischerKreis_378","Rheinisch_BergischerKreis_378","Leichlingen (Rheinland)_016"]
["Rheinisch_BergischerKreis_378","Rheinisch_BergischerKreis_378","Odenthal_020"]
["Rheinisch_BergischerKreis_378","Rheinisch_BergischerKreis_378","Overath_024"]
["Rheinisch_BergischerKreis_378","Rheinisch_BergischerKreis_378","Rösrath_028"]
["Rheinisch_BergischerKreis_378","Rheinisch_BergischerKreis_378","Wermelskirchen,Stadt_032"]
["Rhein_Sieg_Kreis_382","Rhein_Sieg_Kreis_382","Alfter_004"]
["Rhein_Sieg_Kreis_382","Rhein_Sieg_Kreis_382","Bad Honnef,Stadt_008"]
["Rhein_Sieg_Kreis_382","Rhein_Sieg_Kreis_382","Bornheim,Stadt_012"]
["Rhein_Sieg_Kreis_382","Rhein_Sieg_Kreis_382","Eitorf_016"]
["Rhein_Sieg_Kreis_382","Rhein_Sieg_Kreis_382","Hennef (Sieg),Stadt_020"]
["Rhein_Sieg_Kreis_382","Rhein_Sieg_Kreis_382","Königswinter,Stadt_024"]
["Rhein_Sieg_Kreis_382","Rhein_Sieg_Kreis_382","Lohmar,Stadt_028"]
["Rhein_Sieg_Kreis_382","Rhein_Sieg_Kreis_382","Meckenheim,Stadt_032"]
["Rhein_Sieg_Kreis_382","Rhein_Sieg_Kreis_382","Much_036"]
["Rhein_Sieg_Kreis_382","Rhein_Sieg_Kreis_382","Neunkirchen_Seelscheid_040"]
["Rhein_Sieg_Kreis_382","Rhein_Sieg_Kreis_382","Niederkassel,Stadt_044"]
["Rhein_Sieg_Kreis_382","Rhein_Sieg_Kreis_382","Rheinbach,Stadt_048"]
["Rhein_Sieg_Kreis_382","Rhein_Sieg_Kreis_382","Ruppichteroth_052"]
["Rhein_Sieg_Kreis_382","Rhein_Sieg_Kreis_382","Sankt Augustin,Stadt_056"]
["Rhein_Sieg_Kreis_382","Rhein_Sieg_Kreis_382","Siegburg,Stadt_060"]
["Rhein_Sieg_Kreis_382","Rhein_Sieg_Kreis_382","Swisttal_064"]
["Rhein_Sieg_Kreis_382","Rhein_Sieg_Kreis_382","Troisdorf,Stadt_068"]
["Rhein_Sieg_Kreis_382","Rhein_Sieg_Kreis_382","Wachtberg_072"]
["Rhein_Sieg_Kreis_382","Rhein_Sieg_Kreis_382","Windeck_076"]
["BottropStadt_512","BottropStadt_512","Bottrop,Stadt_000"]
["GelsenkirchenStadt_513","GelsenkirchenStadt_513","Gelsenkirchen,Stadt_000"]
["MünsterStadt_515","MünsterStadt_515","Münster,Stadt_000"]
["Borken_554","Borken_554","Ahaus,Stadt_004"]
["Borken_554","Borken_554","Bocholt,Stadt_008"]
["Borken_554","Borken_554","Borken,Stadt_012"]
["Borken_554","Borken_554","Gescher,Stadt_016"]
["Borken_554","Borken_554","Gronau (Westfalen),Stadt_020"]
["Borken_554","Borken_554","Heek_024"]
["Borken_554","Borken_554","Heiden_028"]
["Borken_554","Borken_554","Isselburg,Stadt_032"]
["Borken_554","Borken_554","Legden_036"]
["Borken_554","Borken_554","Raesfeld_040"]
["Borken_554","Borken_554","Reken_044"]
["Borken_554","Borken_554","Rhede,Stadt_048"]
["Borken_554","Borken_554","Schöppingen_052"]
["Borken_554","Borken_554","Stadtlohn,Stadt_056"]
["Borken_554","Borken_554","Südlohn_060"]
["Borken_554","Borken_554","Velen_064"]
["Borken_554","Borken_554","Vreden,Stadt_068"]
["Coesfeld_558","Coesfeld_558","Ascheberg_004"]
["Coesfeld_558","Coesfeld_558","Billerbeck,Stadt_008"]
["Coesfeld_558","Coesfeld_558","Coesfeld,Stadt_012"]
["Coesfeld_558","Coesfeld_558","Dülmen,Stadt_016"]
["Coesfeld_558","Coesfeld_558","Havixbeck_020"]
["Coesfeld_558","Coesfeld_558","Lüdinghausen,Stadt_024"]
["Coesfeld_558","Coesfeld_558","Nordkirchen_028"]
["Coesfeld_558","Coesfeld_558","Nottuln_032"]
["Coesfeld_558","Coesfeld_558","Olfen,Stadt_036"]
["Coesfeld_558","Coesfeld_558","Rosendahl_040"]
["Coesfeld_558","Coesfeld_558","Senden_044"]
["Recklinghausen_562","Recklinghausen_562","Castrop_Rauxel,Stadt_004"]
["Recklinghausen_562","Recklinghausen_562","Datteln,Stadt_008"]
["Recklinghausen_562","Recklinghausen_562","Dorsten,Stadt_012"]
["Recklinghausen_562","Recklinghausen_562","Gladbeck,Stadt_014"]
["Recklinghausen_562","Recklinghausen_562","Haltern,Stadt_016"]
["Recklinghausen_562","Recklinghausen_562","Herten,Stadt_020"]
["Recklinghausen_562","Recklinghausen_562","Marl,Stadt_024"]
["Recklinghausen_562","Recklinghausen_562","Oer_Erkenschwick,Stadt_028"]
["Recklinghausen_562","Recklinghausen_562","Recklinghausen,Stadt_032"]
["Recklinghausen_562","Recklinghausen_562","Waltrop,Stadt_036"]
["Steinfurt_566","Steinfurt_566","Altenberge_004"]
["Steinfurt_566","Steinfurt_566","Emsdetten,Stadt_008"]
["Steinfurt_566","Steinfurt_566","Greven,Stadt_012"]
["Steinfurt_566","Steinfurt_566","Hörstel,Stadt_016"]
["Steinfurt_566","Steinfurt_566","Hopsten_020"]
["Steinfurt_566","Steinfurt_566","Horstmar,Stadt_024"]
["Steinfurt_566","Steinfurt_566","Ibbenbüren,Stadt_028"]
["Steinfurt_566","Steinfurt_566","Ladbergen_032"]
["Steinfurt_566","Steinfurt_566","Laer_036"]
["Steinfurt_566","Steinfurt_566","Lengerich,Stadt_040"]
["Steinfurt_566","Steinfurt_566","Lienen_044"]
["Steinfurt_566","Steinfurt_566","Lotte_048"]
["Steinfurt_566","Steinfurt_566","Metelen_052"]
["Steinfurt_566","Steinfurt_566","Mettingen_056"]
["Steinfurt_566","Steinfurt_566","Neuenkirchen_060"]
["Steinfurt_566","Steinfurt_566","Nordwalde_064"]
["Steinfurt_566","Steinfurt_566","Ochtrup,Stadt_068"]
["Steinfurt_566","Steinfurt_566","Recke_072"]
["Steinfurt_566","Steinfurt_566","Rheine,Stadt_076"]
["Steinfurt_566","Steinfurt_566","Saerbeck_080"]
["Steinfurt_566","Steinfurt_566","Steinfurt,Stadt_084"]
["Steinfurt_566","Steinfurt_566","Tecklenburg,Stadt_088"]
["Steinfurt_566","Steinfurt_566","Westerkappeln_092"]
["Steinfurt_566","Steinfurt_566","Wettringen_096"]
["Warendorf_570","Warendorf_570","Ahlen,Stadt_004"]
["Warendorf_570","Warendorf_570","Beckum,Stadt_008"]
["Warendorf_570","Warendorf_570","Beelen_012"]
["Warendorf_570","Warendorf_570","Drensteinfurt,Stadt_016"]
["Warendorf_570","Warendorf_570","Ennigerloh,Stadt_020"]
["Warendorf_570","Warendorf_570","Everswinkel_024"]
["Warendorf_570","Warendorf_570","Oelde,Stadt_028"]
["Warendorf_570","Warendorf_570","Ostbevern_032"]
["Warendorf_570","Warendorf_570","Sassenberg,Stadt_036"]
["Warendorf_570","Warendorf_570","Sendenhorst,Stadt_040"]
["Warendorf_570","Warendorf_570","Telgte,Stadt_044"]
["Warendorf_570","Warendorf_570","Wadersloh_048"]
["Warendorf_570","Warendorf_570","Warendorf,Stadt_052"]
["BielefeldStadt_711","BielefeldStadt_711","Bielefeld,Stadt_000"]
["Gütersloh_754","Gütersloh_754","Borgholzhausen,Stadt_004"]
["Gütersloh_754","Gütersloh_754","Gütersloh,Stadt_008"]
["Gütersloh_754","Gütersloh_754","Halle (Westf.),Stadt_012"]
["Gütersloh_754","Gütersloh_754","Harsewinkel,Stadt_016"]
["Gütersloh_754","Gütersloh_754","Herzebrock_Clarholz_020"]
["Gütersloh_754","Gütersloh_754","Langenberg_024"]
["Gütersloh_754","Gütersloh_754","Rheda_Wiedenbrück,Stadt_028"]
["Gütersloh_754","Gütersloh_754","Rietberg,Stadt_032"]
["Gütersloh_754","Gütersloh_754","Schloß Holte_Stukenbrock_036"]
["Gütersloh_754","Gütersloh_754","Steinhagen_040"]
["Gütersloh_754","Gütersloh_754","Verl_044"]
["Gütersloh_754","Gütersloh_754","Versmold,Stadt_048"]
["Gütersloh_754","Gütersloh_754","Werther (Westf.),Stadt_052"]
["Herford_758","Herford_758","Bünde,Stadt_004"]
["Herford_758","Herford_758","Enger,Stadt_008"]
["Herford_758","Herford_758","Herford,Stadt_012"]
["Herford_758","Herford_758","Hiddenhausen_016"]
["Herford_758","Herford_758","Kirchlengern_020"]
["Herford_758","Herford_758","Löhne,Stadt_024"]
["Herford_758","Herford_758","Rödinghausen_028"]
["Herford_758","Herford_758","Spenge,Stadt_032"]
["Herford_758","Herford_758","Vlotho,Stadt_036"]
["Höxter_762","Höxter_762","Bad Driburg,Stadt_004"]
["Höxter_762","Höxter_762","Beverungen,Stadt_008"]
["Höxter_762","Höxter_762","Borgentreich,Stadt_012"]
["Höxter_762","Höxter_762","Brakel,Stadt_016"]
["Höxter_762","Höxter_762","Höxter,Stadt_020"]
["Höxter_762","Höxter_762","Marienmünster,Stadt_024"]
["Höxter_762","Höxter_762","Nieheim,Stadt_028"]
["Höxter_762","Höxter_762","Steinheim,Stadt_032"]
["Höxter_762","Höxter_762","Warburg,Stadt_036"]
["Höxter_762","Höxter_762","Willebadessen,Stadt_040"]
["Lippe_766","Lippe_766","Augustdorf_004"]
["Lippe_766","Lippe_766","Bad Salzuflen,Stadt_008"]
["Lippe_766","Lippe_766","Barntrup,Stadt_012"]
["Lippe_766","Lippe_766","Blomberg,Stadt_016"]
["Lippe_766","Lippe_766","Detmold,Stadt_020"]
["Lippe_766","Lippe_766","Dörentrup_024"]
["Lippe_766","Lippe_766","Extertal_028"]
["Lippe_766","Lippe_766","Horn_Bad Meinberg,Stadt_032"]
["Lippe_766","Lippe_766","Kalletal_036"]
["Lippe_766","Lippe_766","Lage,Stadt_040"]
["Lippe_766","Lippe_766","Lemgo,Stadt_044"]
["Lippe_766","Lippe_766","Leopoldshöhe_048"]
["Lippe_766","Lippe_766","Lügde,Stadt_052"]
["Lippe_766","Lippe_766","Oerlinghausen,Stadt_056"]
["Lippe_766","Lippe_766","Schieder_Schwalenberg,Stad_060"]
["Lippe_766","Lippe_766","Schlangen_064"]
["Minden_Lübbecke_770","Minden_Lübbecke_770","Bad Oeynhausen,Stadt_004"]
["Minden_Lübbecke_770","Minden_Lübbecke_770","Espelkamp,Stadt_008"]
["Minden_Lübbecke_770","Minden_Lübbecke_770","Hille_012"]
["Minden_Lübbecke_770","Minden_Lübbecke_770","Hüllhorst_016"]
["Minden_Lübbecke_770","Minden_Lübbecke_770","Lübbecke,Stadt_020"]
["Minden_Lübbecke_770","Minden_Lübbecke_770","Minden,Stadt_024"]
["Minden_Lübbecke_770","Minden_Lübbecke_770","Petershagen,Stadt_028"]
["Minden_Lübbecke_770","Minden_Lübbecke_770","Porta Westfalica,Stadt_032"]
["Minden_Lübbecke_770","Minden_Lübbecke_770","Preußisch Oldendorf,Stadt_036"]
["Minden_Lübbecke_770","Minden_Lübbecke_770","Rahden,Stadt_040"]
["Minden_Lübbecke_770","Minden_Lübbecke_770","Stemwede_044"]
["Paderborn_774","Paderborn_774","Altenbeken_004"]
["Paderborn_774","Paderborn_774","Bad Lippspringe,Stadt_008"]
["Paderborn_774","Paderborn_774","Borchen_012"]
["Paderborn_774","Paderborn_774","Büren,Stadt_016"]
["Paderborn_774","Paderborn_774","Delbrück,Stadt_020"]
["Paderborn_774","Paderborn_774","Hövelhof_024"]
["Paderborn_774","Paderborn_774","Lichtenau,Stadt_028"]
["Paderborn_774","Paderborn_774","Paderborn,Stadt_032"]
["Paderborn_774","Paderborn_774","Salzkotten,Stadt_036"]
["Paderborn_774","Paderborn_774","Wünnenberg,Stadt_040"]
["BochumStadt_911","BochumStadt_911","Bochum,Stadt_000"]
["DortmundStadt_913","DortmundStadt_913","Dortmund,Stadt_000"]
["HagenStadt_914","HagenStadt_914","Hagen,Stadt_000"]
["HammStadt_915","HammStadt_915","Hamm,Stadt_000"]
["HerneStadt_916","HerneStadt_916","Herne,Stadt_000"]
["Ennepe_Ruhr_Kreis_954","Ennepe_Ruhr_Kreis_954","Breckerfeld,Stadt_004"]
["Ennepe_Ruhr_Kreis_954","Ennepe_Ruhr_Kreis_954","Ennepetal,Stadt_008"]
["Ennepe_Ruhr_Kreis_954","Ennepe_Ruhr_Kreis_954","Gevelsberg,Stadt_012"]
["Ennepe_Ruhr_Kreis_954","Ennepe_Ruhr_Kreis_954","Hattingen,Stadt_016"]
["Ennepe_Ruhr_Kreis_954","Ennepe_Ruhr_Kreis_954","Herdecke,Stadt_020"]
["Ennepe_Ruhr_Kreis_954","Ennepe_Ruhr_Kreis_954","Schwelm,Stadt_024"]
["Ennepe_Ruhr_Kreis_954","Ennepe_Ruhr_Kreis_954","Sprockhövel,Stadt_028"]
["Ennepe_Ruhr_Kreis_954","Ennepe_Ruhr_Kreis_954","Wetter (Ruhr),Stadt_032"]
["Ennepe_Ruhr_Kreis_954","Ennepe_Ruhr_Kreis_954","Witten,Stadt_036"]
["Hochsauerlandkreis_958","Hochsauerlandkreis_958","Arnsberg,Stadt_004"]
["Hochsauerlandkreis_958","Hochsauerlandkreis_958","Bestwig_008"]
["Hochsauerlandkreis_958","Hochsauerlandkreis_958","Brilon,Stadt_012"]
["Hochsauerlandkreis_958","Hochsauerlandkreis_958","Eslohe (Sauerland)_016"]
["Hochsauerlandkreis_958","Hochsauerlandkreis_958","Hallenberg,Stadt_020"]
["Hochsauerlandkreis_958","Hochsauerlandkreis_958","Marsberg,Stadt_024"]
["Hochsauerlandkreis_958","Hochsauerlandkreis_958","Medebach,Stadt_028"]
["Hochsauerlandkreis_958","Hochsauerlandkreis_958","Meschede,Stadt_032"]
["Hochsauerlandkreis_958","Hochsauerlandkreis_958","Olsberg,Stadt_036"]
["Hochsauerlandkreis_958","Hochsauerlandkreis_958","Schmallenberg,Stadt_040"]
["Hochsauerlandkreis_958","Hochsauerlandkreis_958","Sundern (Sauerland),Stadt_044"]
["Hochsauerlandkreis_958","Hochsauerlandkreis_958","Winterberg,Stadt_048"]
["MärkischerKreis_962","MärkischerKreis_962","Altena,Stadt_004"]
["MärkischerKreis_962","MärkischerKreis_962","Balve,Stadt_008"]
["MärkischerKreis_962","MärkischerKreis_962","Halver,Stadt_012"]
["MärkischerKreis_962","MärkischerKreis_962","Hemer,Stadt_016"]
["MärkischerKreis_962","MärkischerKreis_962","Herscheid_020"]
["MärkischerKreis_962","MärkischerKreis_962","Iserlohn,Stadt_024"]
["MärkischerKreis_962","MärkischerKreis_962","Kierspe,Stadt_028"]
["MärkischerKreis_962","MärkischerKreis_962","Lüdenscheid,Stadt_032"]
["MärkischerKreis_962","MärkischerKreis_962","Meinerzhagen,Stadt_036"]
["MärkischerKreis_962","MärkischerKreis_962","Menden (Sauerland),Stadt_040"]
["MärkischerKreis_962","MärkischerKreis_962","Nachrodt_Wiblingwerde_044"]
["MärkischerKreis_962","MärkischerKreis_962","Neuenrade,Stadt_048"]
["MärkischerKreis_962","MärkischerKreis_962","Plettenberg,Stadt_052"]
["MärkischerKreis_962","MärkischerKreis_962","Schalksmühle_056"]
["MärkischerKreis_962","MärkischerKreis_962","Werdohl,Stadt_060"]
["Olpe_966","Olpe_966","Attendorn,Stadt_004"]
["Olpe_966","Olpe_966","Drolshagen,Stadt_008"]
["Olpe_966","Olpe_966","Finnentrop_012"]
["Olpe_966","Olpe_966","Kirchhundem_016"]
["Olpe_966","Olpe_966","Lennestadt,Stadt_020"]
["Olpe_966","Olpe_966","Olpe,Stadt_024"]
["Olpe_966","Olpe_966","Wenden_028"]
["Siegen_Wittgenstein_970","Siegen_Wittgenstein_970","Bad Berleburg,Stadt_004"]
["Siegen_Wittgenstein_970","Siegen_Wittgenstein_970","Burbach_008"]
["Siegen_Wittgenstein_970","Siegen_Wittgenstein_970","Erndtebrück_012"]
["Siegen_Wittgenstein_970","Siegen_Wittgenstein_970","Freudenberg,Stadt_016"]
["Siegen_Wittgenstein_970","Siegen_Wittgenstein_970","Hilchenbach,Stadt_020"]
["Siegen_Wittgenstein_970","Siegen_Wittgenstein_970","Kreuztal,Stadt_024"]
["Siegen_Wittgenstein_970","Siegen_Wittgenstein_970","Bad Laasphe,Stadt_028"]
["Siegen_Wittgenstein_970","Siegen_Wittgenstein_970","Netphen_032"]
["Siegen_Wittgenstein_970","Siegen_Wittgenstein_970","Neunkirchen_036"]
["Siegen_Wittgenstein_970","Siegen_Wittgenstein_970","Siegen,Stadt_040"]
["Siegen_Wittgenstein_970","Siegen_Wittgenstein_970","Wilnsdorf_044"]
["Soest_974","Soest_974","Anröchte_004"]
["Soest_974","Soest_974","Bad Sassendorf_008"]
["Soest_974","Soest_974","Ense_012"]
["Soest_974","Soest_974","Erwitte,Stadt_016"]
["Soest_974","Soest_974","Geseke,Stadt_020"]
["Soest_974","Soest_974","Lippetal_024"]
["Soest_974","Soest_974","Lippstadt,Stadt_028"]
["Soest_974","Soest_974","Möhnesee_032"]
["Soest_974","Soest_974","Rüthen,Stadt_036"]
["Soest_974","Soest_974","Soest,Stadt_040"]
["Soest_974","Soest_974","Warstein,Stadt_044"]
["Soest_974","Soest_974","Welver_048"]
["Soest_974","Soest_974","Werl,Stadt_052"]
["Soest_974","Soest_974","Wickede (Ruhr)_056"]
["Unna_978","Unna_978","Bergkamen,Stadt_004"]
["Unna_978","Unna_978","Bönen_008"]
["Unna_978","Unna_978","Fröndenberg,Stadt_012"]
["Unna_978","Unna_978","Holzwickede_016"]
["Unna_978","Unna_978","Kamen,Stadt_020"]
["Unna_978","Unna_978","Lünen,Stadt_024"]
["Unna_978","Unna_978","Schwerte,Stadt_028"]
["Unna_978","Unna_978","Selm,Stadt_032"]
["Unna_978","Unna_978","Unna,Stadt_036"]
["Unna_978","Unna_978","Werne,Stadt_040"]
["KreisausserhalbNRW_999","KreisausserhalbNRW_999","Gemeinde ausserhalb NRW_999"]